Body Name,Service Code,Expenditure Category,Payment Date,Transaction Number,Supplier,Net Amount
Barrow Borough Council,Local Restrictions Support Grant (Closed)�Addendum�,Wholesale And Retail Trade; Repair Of Motor Vehicles And Motorcycles,01-Mar-21,LRSG_2237,James Milner (Barrow) Ltd,"2,000.00"
Barrow Borough Council,Local Restrictions Support Grant (Closed)�Addendum�,"Arts, Entertainment And Recreation",01-Mar-21,LRSG_2238,Walney Marine club,"1,334.00"
Barrow Borough Council,Local Restrictions Support Grant (Closed)�Addendum�,Wholesale And Retail Trade; Repair Of Motor Vehicles And Motorcycles,01-Mar-21,LRSG_2239,Cumbria Autos ltd,"1,334.00"
Barrow Borough Council,Local Restrictions Support Grant (Closed) Addendum: Tier 4,"Arts, Entertainment And Recreation",01-Mar-21,LRSG_2240,St Matthews Community Halls,238.21
Barrow Borough Council,Local Restrictions Support Grant (Closed) Addendum: 5 January onwards,"Arts, Entertainment And Recreation",01-Mar-21,LRSG_2241,St Matthews Community Halls,"2,001.00"
Barrow Borough Council,Local Restrictions Support Grant (Closed) Addendum: Tier 4,Wholesale And Retail Trade; Repair Of Motor Vehicles And Motorcycles,01-Mar-21,LRSG_2242,Business Grant Recipient,238.21
Barrow Borough Council,Local Restrictions Support Grant (Closed) Addendum: 5 January onwards,Wholesale And Retail Trade; Repair Of Motor Vehicles And Motorcycles,01-Mar-21,LRSG_2243,Business Grant Recipient,"2,001.00"
Barrow Borough Council,Local Restrictions Support Grant (Closed) Addendum: Tier 4,"Arts, Entertainment And Recreation",01-Mar-21,LRSG_2244,Schneider Road Community Hub,238.21
Barrow Borough Council,Local Restrictions Support Grant (Closed) Addendum: 5 January onwards,"Arts, Entertainment And Recreation",01-Mar-21,LRSG_2245,Schneider Road Community Hub,"2,001.00"
Barrow Borough Council,Local Restrictions Support Grant (Open)�,"Arts, Entertainment And Recreation",01-Mar-21,LRSG_2246,ESCAPE ROOM (Barrow ltd),967.36
Barrow Borough Council,Local Restrictions Support Grant (Closed)�Addendum�,Accommodation And Food Service Activities,02-Mar-21,LRSG_2247,The lodge,"1,334.00"
Barrow Borough Council,Local Restrictions Support Grant (Closed)�Addendum�,"Arts, Entertainment And Recreation",02-Mar-21,LRSG_2248,Barrow & District Disability Association,"1,334.00"
Barrow Borough Council,Local Restrictions Support Grant (Closed)�Addendum�,"Arts, Entertainment And Recreation",02-Mar-21,LRSG_2249,Askam Town Silver Band ,"1,334.00"
Barrow Borough Council,Closed Business Lockdown Payment,Accommodation And Food Service Activities,03-Mar-21,LRSG_2250,Mitchells & Butlers ,"9,000.00"
Barrow Borough Council,Closed Business Lockdown Payment,Wholesale And Retail Trade; Repair Of Motor Vehicles And Motorcycles,03-Mar-21,LRSG_2251,Odette hairdressers,"4,000.00"
Barrow Borough Council,Closed Business Lockdown Payment,Wholesale And Retail Trade; Repair Of Motor Vehicles And Motorcycles,03-Mar-21,LRSG_2252, Home Images,"4,000.00"
Barrow Borough Council,Closed Business Lockdown Payment,"Arts, Entertainment And Recreation",03-Mar-21,LRSG_2253,St Matthews Community Halls,"4,000.00"
Barrow Borough Council,Closed Business Lockdown Payment,Wholesale And Retail Trade; Repair Of Motor Vehicles And Motorcycles,03-Mar-21,LRSG_2254,Business Grant Recipient,"4,000.00"
Barrow Borough Council,Closed Business Lockdown Payment,"Arts, Entertainment And Recreation",03-Mar-21,LRSG_2255,Schneider Road Community Hub,"4,000.00"
Barrow Borough Council,Local Restrictions Support Grant (Closed) Addendum: Tier 4,Wholesale And Retail Trade; Repair Of Motor Vehicles And Motorcycles,03-Mar-21,LRSG_2256,Cumbria Autos ltd,238.21
Barrow Borough Council,Local Restrictions Support Grant (Closed) Addendum: 5 January onwards,Wholesale And Retail Trade; Repair Of Motor Vehicles And Motorcycles,03-Mar-21,LRSG_2257,Cumbria Autos ltd,"2,001.00"
Barrow Borough Council,Local Restrictions Support Grant (Closed) Addendum: Tier 4,Wholesale And Retail Trade; Repair Of Motor Vehicles And Motorcycles,03-Mar-21,LRSG_2258,James Milner (Barrow) Ltd,357.14
Barrow Borough Council,Local Restrictions Support Grant (Closed) Addendum: 5 January onwards,Wholesale And Retail Trade; Repair Of Motor Vehicles And Motorcycles,03-Mar-21,LRSG_2259,James Milner (Barrow) Ltd,"3,000.00"
Barrow Borough Council,Local Restrictions Support Grant (Closed)�Addendum�,"Arts, Entertainment And Recreation",08-Mar-21,LRSG_2260,Majestic Bingo Limited,"3,000.00"
Barrow Borough Council,Local Restrictions Support Grant (Closed)�Addendum�,Wholesale And Retail Trade; Repair Of Motor Vehicles And Motorcycles,08-Mar-21,LRSG_2261,Business Grant Recipient,"1,334.00"
Barrow Borough Council,Local Restrictions Support Grant (Closed) Addendum: Tier 4,"Arts, Entertainment And Recreation",08-Mar-21,LRSG_2262,Barrow & District Disability Association,238.21
Barrow Borough Council,Local Restrictions Support Grant (Closed) Addendum: 5 January onwards,"Arts, Entertainment And Recreation",08-Mar-21,LRSG_2263,Barrow & District Disability Association,"2,001.00"
Barrow Borough Council,Local Restrictions Support Grant (Closed) Addendum: Tier 4,"Arts, Entertainment And Recreation",08-Mar-21,LRSG_2264,Askam Town Silver Band ,238.21
Barrow Borough Council,Local Restrictions Support Grant (Closed) Addendum: 5 January onwards,"Arts, Entertainment And Recreation",08-Mar-21,LRSG_2265,Askam Town Silver Band ,"2,001.00"
Barrow Borough Council,Local Restrictions Support Grant (Closed) Addendum: Tier 4,Wholesale And Retail Trade; Repair Of Motor Vehicles And Motorcycles,08-Mar-21,LRSG_2266,Empire Flooring Services Ltd ,357.14
Barrow Borough Council,Local Restrictions Support Grant (Closed) Addendum: 5 January onwards,Wholesale And Retail Trade; Repair Of Motor Vehicles And Motorcycles,08-Mar-21,LRSG_2267,Empire Flooring Services Ltd ,"3,000.00"
Barrow Borough Council,Local Restrictions Support Grant (Closed) Addendum: Tier 4,Accommodation And Food Service Activities,08-Mar-21,LRSG_2268,Pizza Hut (UK) Ltd,535.71
Barrow Borough Council,Local Restrictions Support Grant (Closed) Addendum: 5 January onwards,Accommodation And Food Service Activities,08-Mar-21,LRSG_2269,Pizza Hut (UK) Ltd,"4,500.00"
Barrow Borough Council,Local Restrictions Support Grant (Closed) Addendum: Tier 4,"Arts, Entertainment And Recreation",08-Mar-21,LRSG_2270,Barrow Wanderers FC,238.21
Barrow Borough Council,Local Restrictions Support Grant (Closed) Addendum: 5 January onwards,"Arts, Entertainment And Recreation",08-Mar-21,LRSG_2271,Barrow Wanderers FC,"2,001.00"
Barrow Borough Council,Local Restrictions Support Grant (Closed) Addendum: Tier 4,"Arts, Entertainment And Recreation",08-Mar-21,LRSG_2272,Newton village hall,238.21
Barrow Borough Council,Local Restrictions Support Grant (Closed) Addendum: 5 January onwards,"Arts, Entertainment And Recreation",08-Mar-21,LRSG_2273,Newton village hall,"2,001.00"
Barrow Borough Council,Local Restrictions Support Grant (Closed) Addendum: Tier 4,Wholesale And Retail Trade; Repair Of Motor Vehicles And Motorcycles,08-Mar-21,LRSG_2274,Indentityco Limited,357.14
Barrow Borough Council,Local Restrictions Support Grant (Closed) Addendum: 5 January onwards,Wholesale And Retail Trade; Repair Of Motor Vehicles And Motorcycles,08-Mar-21,LRSG_2275,Indentityco Limited,"3,000.00"
Barrow Borough Council,Local Restrictions Support Grant (Closed) Addendum: Tier 4,Accommodation And Food Service Activities,08-Mar-21,LRSG_2276,Valley View House Limited,357.14
Barrow Borough Council,Local Restrictions Support Grant (Closed) Addendum: 5 January onwards,Accommodation And Food Service Activities,08-Mar-21,LRSG_2277,Valley View House Limited,"3,000.00"
Barrow Borough Council,Local Restrictions Support Grant (Open)�,Accommodation And Food Service Activities,08-Mar-21,LRSG_2278,Lucidty Group Ltd,"2,175.00"
Barrow Borough Council,Local Restrictions Support Grant (Closed) Addendum: Tier 4,Accommodation And Food Service Activities,08-Mar-21,LRSG_2279,Lucidty Group Ltd,535.71
Barrow Borough Council,Local Restrictions Support Grant (Closed) Addendum: 5 January onwards,Accommodation And Food Service Activities,08-Mar-21,LRSG_2280,Lucidty Group Ltd,"4,500.00"
Barrow Borough Council,Local Restrictions Support Grant (Closed)�,Accommodation And Food Service Activities,08-Mar-21,LRSG_2281,Business Grant Recipient,"2,071.43"
Barrow Borough Council,Local Restrictions Support Grant (Closed) Addendum: Tier 4,Accommodation And Food Service Activities,08-Mar-21,LRSG_2282,Business Grant Recipient,357.14
Barrow Borough Council,Local Restrictions Support Grant (Closed) Addendum: 5 January onwards,Accommodation And Food Service Activities,08-Mar-21,LRSG_2283,Business Grant Recipient,"3,000.00"
Barrow Borough Council,Local Restrictions Support Grant (Closed) Addendum: Tier 4,Wholesale And Retail Trade; Repair Of Motor Vehicles And Motorcycles,09-Mar-21,LRSG_2284,Business Grant Recipient,238.21
Barrow Borough Council,Local Restrictions Support Grant (Closed) Addendum: 5 January onwards,Wholesale And Retail Trade; Repair Of Motor Vehicles And Motorcycles,09-Mar-21,LRSG_2285,Business Grant Recipient,"2,001.00"
Barrow Borough Council,Local Restrictions Support Grant (Closed) Addendum: Tier 4,Wholesale And Retail Trade; Repair Of Motor Vehicles And Motorcycles,09-Mar-21,LRSG_2286,Gents hairdressers,238.21
Barrow Borough Council,Local Restrictions Support Grant (Closed) Addendum: 5 January onwards,Wholesale And Retail Trade; Repair Of Motor Vehicles And Motorcycles,09-Mar-21,LRSG_2287,Gents hairdressers,"2,001.00"
Barrow Borough Council,Local Restrictions Support Grant (Closed)�Addendum�,Wholesale And Retail Trade; Repair Of Motor Vehicles And Motorcycles,10-Mar-21,LRSG_2288,Cancer Research UK,"1,334.00"
Barrow Borough Council,Local Restrictions Support Grant (Open)�,"Arts, Entertainment And Recreation",10-Mar-21,LRSG_2289,Majestic Bingo Limited,"2,175.00"
Barrow Borough Council,Local Restrictions Support Grant (Closed) Addendum: Tier 4,"Arts, Entertainment And Recreation",10-Mar-21,LRSG_2290,Majestic Bingo Limited,535.71
Barrow Borough Council,Local Restrictions Support Grant (Closed) Addendum: 5 January onwards,"Arts, Entertainment And Recreation",10-Mar-21,LRSG_2291,Majestic Bingo Limited,"4,500.00"
Barrow Borough Council,Local Restrictions Support Grant (Closed) Addendum: Tier 4,Wholesale And Retail Trade; Repair Of Motor Vehicles And Motorcycles,10-Mar-21,LRSG_2292,Andersons (Denton Holme)  Limited,357.14
Barrow Borough Council,Local Restrictions Support Grant (Closed) Addendum: 5 January onwards,Wholesale And Retail Trade; Repair Of Motor Vehicles And Motorcycles,10-Mar-21,LRSG_2293,Andersons (Denton Holme)  Limited,"3,000.00"
Barrow Borough Council,Closed Business Lockdown Payment,Wholesale And Retail Trade; Repair Of Motor Vehicles And Motorcycles,10-Mar-21,LRSG_2294,Cumbria Autos ltd,"4,000.00"
Barrow Borough Council,Closed Business Lockdown Payment,Wholesale And Retail Trade; Repair Of Motor Vehicles And Motorcycles,10-Mar-21,LRSG_2295,James Milner (Barrow) Ltd,"6,000.00"
Barrow Borough Council,Closed Business Lockdown Payment,"Arts, Entertainment And Recreation",10-Mar-21,LRSG_2296,Barrow & District Disability Association,"4,000.00"
Barrow Borough Council,Closed Business Lockdown Payment,"Arts, Entertainment And Recreation",10-Mar-21,LRSG_2297,Askam Town Silver Band ,"4,000.00"
Barrow Borough Council,Closed Business Lockdown Payment,Wholesale And Retail Trade; Repair Of Motor Vehicles And Motorcycles,10-Mar-21,LRSG_2298,Empire Flooring Services Ltd ,"6,000.00"
Barrow Borough Council,Closed Business Lockdown Payment,Accommodation And Food Service Activities,10-Mar-21,LRSG_2299,Pizza Hut (UK) Ltd,"9,000.00"
Barrow Borough Council,Closed Business Lockdown Payment,"Arts, Entertainment And Recreation",10-Mar-21,LRSG_2300,Barrow Wanderers FC,"4,000.00"
Barrow Borough Council,Closed Business Lockdown Payment,"Arts, Entertainment And Recreation",10-Mar-21,LRSG_2301,Newton village hall,"4,000.00"
Barrow Borough Council,Closed Business Lockdown Payment,Wholesale And Retail Trade; Repair Of Motor Vehicles And Motorcycles,10-Mar-21,LRSG_2302,Indentityco Limited,"6,000.00"
Barrow Borough Council,Closed Business Lockdown Payment,Accommodation And Food Service Activities,10-Mar-21,LRSG_2303,Valley View House Limited,"6,000.00"
Barrow Borough Council,Closed Business Lockdown Payment,Wholesale And Retail Trade; Repair Of Motor Vehicles And Motorcycles,10-Mar-21,LRSG_2304,Business Grant Recipient,"4,000.00"
Barrow Borough Council,Closed Business Lockdown Payment,Wholesale And Retail Trade; Repair Of Motor Vehicles And Motorcycles,10-Mar-21,LRSG_2305,Gents hairdressers,"4,000.00"
Barrow Borough Council,Closed Business Lockdown Payment,Accommodation And Food Service Activities,10-Mar-21,LRSG_2306,Lucidty Group Ltd,"9,000.00"
Barrow Borough Council,Closed Business Lockdown Payment,Accommodation And Food Service Activities,10-Mar-21,LRSG_2307,Business Grant Recipient,"6,000.00"
Barrow Borough Council,Local Restrictions Support Grant (Closed)�Addendum�,Accommodation And Food Service Activities,11-Mar-21,LRSG_2308,Business Grant Recipient,"1,334.00"
Barrow Borough Council,Local Restrictions Support Grant (Closed)�Addendum�,Wholesale And Retail Trade; Repair Of Motor Vehicles And Motorcycles,11-Mar-21,LRSG_2309,Courtesy Shoes Ltd,"2,000.00"
Barrow Borough Council,Local Restrictions Support Grant (Closed)�Addendum�,Wholesale And Retail Trade; Repair Of Motor Vehicles And Motorcycles,11-Mar-21,LRSG_2310,Intrim Ladies Hairdressers,"1,334.00"
Barrow Borough Council,Local Restrictions Support Grant (Closed)�Addendum�,Wholesale And Retail Trade; Repair Of Motor Vehicles And Motorcycles,11-Mar-21,LRSG_2311,Barton Townley (Barrow) Ltd,"3,000.00"
Barrow Borough Council,Local Restrictions Support Grant (Open)�,Accommodation And Food Service Activities,11-Mar-21,LRSG_2312,Business Grant Recipient,633.79
Barrow Borough Council,Local Restrictions Support Grant (Closed) Addendum: Tier 4,Accommodation And Food Service Activities,11-Mar-21,LRSG_2313,Business Grant Recipient,238.21
Barrow Borough Council,Local Restrictions Support Grant (Closed) Addendum: 5 January onwards,Accommodation And Food Service Activities,11-Mar-21,LRSG_2314,Business Grant Recipient,"2,001.00"
Barrow Borough Council,Local Restrictions Support Grant (Closed)�Addendum�,Wholesale And Retail Trade; Repair Of Motor Vehicles And Motorcycles,16-Mar-21,LRSG_2315,Business Grant Recipient,"1,334.00"
Barrow Borough Council,Local Restrictions Support Grant (Closed)�Addendum�,Wholesale And Retail Trade; Repair Of Motor Vehicles And Motorcycles,16-Mar-21,LRSG_2316,British Heart Foundation,"1,334.00"
Barrow Borough Council,Local Restrictions Support Grant (Closed)�Addendum�,Wholesale And Retail Trade; Repair Of Motor Vehicles And Motorcycles,16-Mar-21,LRSG_2317,British Heart Foundation,"3,000.00"
Barrow Borough Council,Local Restrictions Support Grant (Closed)�Addendum�,Accommodation And Food Service Activities,16-Mar-21,LRSG_2318,Business Grant Recipient,"1,334.00"
Barrow Borough Council,Local Restrictions Support Grant (Closed)�Addendum�,Transportation And Storage,16-Mar-21,LRSG_2319,Henning Bottom,"2,000.00"
Barrow Borough Council,Local Restrictions Support Grant (Closed)�Addendum�,Wholesale And Retail Trade; Repair Of Motor Vehicles And Motorcycles,16-Mar-21,LRSG_2320,Telefonica 02 UK,"1,334.00"
Barrow Borough Council,Local Restrictions Support Grant (Closed)�Addendum�,Wholesale And Retail Trade; Repair Of Motor Vehicles And Motorcycles,16-Mar-21,LRSG_2321,Sportswift Ltd T/A Card FACTORY,"2,000.00"
Barrow Borough Council,Local Restrictions Support Grant (Open)�,Wholesale And Retail Trade; Repair Of Motor Vehicles And Motorcycles,16-Mar-21,LRSG_2322,Peace and Loaf,633.79
Barrow Borough Council,Local Restrictions Support Grant (Closed) Addendum: Tier 4,Wholesale And Retail Trade; Repair Of Motor Vehicles And Motorcycles,16-Mar-21,LRSG_2323,Courtesy Shoes Ltd,357.14
Barrow Borough Council,Local Restrictions Support Grant (Closed) Addendum: 5 January onwards,Wholesale And Retail Trade; Repair Of Motor Vehicles And Motorcycles,16-Mar-21,LRSG_2324,Courtesy Shoes Ltd,"3,000.00"
Barrow Borough Council,Local Restrictions Support Grant (Closed) Addendum: Tier 4,Wholesale And Retail Trade; Repair Of Motor Vehicles And Motorcycles,16-Mar-21,LRSG_2325,Cancer Research UK,357.14
Barrow Borough Council,Local Restrictions Support Grant (Closed) Addendum: 5 January onwards,Wholesale And Retail Trade; Repair Of Motor Vehicles And Motorcycles,16-Mar-21,LRSG_2326,Cancer Research UK,"3,000.00"
Barrow Borough Council,Local Restrictions Support Grant (Closed) Addendum: Tier 4,Wholesale And Retail Trade; Repair Of Motor Vehicles And Motorcycles,16-Mar-21,LRSG_2327,Barton Townley (Barrow) Ltd,535.71
Barrow Borough Council,Local Restrictions Support Grant (Closed) Addendum: 5 January onwards,Wholesale And Retail Trade; Repair Of Motor Vehicles And Motorcycles,16-Mar-21,LRSG_2328,Barton Townley (Barrow) Ltd,"4,500.00"
Barrow Borough Council,Local Restrictions Support Grant (Closed) Addendum: Tier 4,Wholesale And Retail Trade; Repair Of Motor Vehicles And Motorcycles,16-Mar-21,LRSG_2329, Heaths,238.21
Barrow Borough Council,Local Restrictions Support Grant (Closed) Addendum: 5 January onwards,Wholesale And Retail Trade; Repair Of Motor Vehicles And Motorcycles,16-Mar-21,LRSG_2330,Heaths,"2,001.00"
Barrow Borough Council,Local Restrictions Support Grant (Closed) Addendum: Tier 4,Wholesale And Retail Trade; Repair Of Motor Vehicles And Motorcycles,17-Mar-21,LRSG_2331,Sportswift Ltd T/A Card FACTORY,357.14
Barrow Borough Council,Local Restrictions Support Grant (Closed) Addendum: 5 January onwards,Wholesale And Retail Trade; Repair Of Motor Vehicles And Motorcycles,17-Mar-21,LRSG_2332,Sportswift Ltd T/A Card FACTORY,"3,000.00"
Barrow Borough Council,Local Restrictions Support Grant (Closed) Addendum: Tier 4,Wholesale And Retail Trade; Repair Of Motor Vehicles And Motorcycles,17-Mar-21,LRSG_2333,British Heart Foundation,238.21
Barrow Borough Council,Local Restrictions Support Grant (Closed) Addendum: 5 January onwards,Wholesale And Retail Trade; Repair Of Motor Vehicles And Motorcycles,17-Mar-21,LRSG_2334,British Heart Foundation,"2,001.00"
Barrow Borough Council,Local Restrictions Support Grant (Closed) Addendum: Tier 4,Wholesale And Retail Trade; Repair Of Motor Vehicles And Motorcycles,17-Mar-21,LRSG_2335,British Heart Foundation,535.71
Barrow Borough Council,Local Restrictions Support Grant (Closed) Addendum: 5 January onwards,Wholesale And Retail Trade; Repair Of Motor Vehicles And Motorcycles,17-Mar-21,LRSG_2336,British Heart Foundation,"4,500.00"
Barrow Borough Council,Local Restrictions Support Grant (Closed) Addendum: Tier 4,Wholesale And Retail Trade; Repair Of Motor Vehicles And Motorcycles,17-Mar-21,LRSG_2337,Telefonica 02 UK,357.14
Barrow Borough Council,Local Restrictions Support Grant (Closed) Addendum: 5 January onwards,Wholesale And Retail Trade; Repair Of Motor Vehicles And Motorcycles,17-Mar-21,LRSG_2338,Telefonica 02 UK,"3,000.00"
Barrow Borough Council,Closed Business Lockdown Payment,"Arts, Entertainment And Recreation",17-Mar-21,LRSG_2339,Majestic Bingo Limited,"9,000.00"
Barrow Borough Council,Closed Business Lockdown Payment,Wholesale And Retail Trade; Repair Of Motor Vehicles And Motorcycles,17-Mar-21,LRSG_2340,Andersons (Denton Holme)  Limited,"6,000.00"
Barrow Borough Council,Closed Business Lockdown Payment,Accommodation And Food Service Activities,17-Mar-21,LRSG_2341,Business Grant Recipient,"4,000.00"
Barrow Borough Council,Closed Business Lockdown Payment,Wholesale And Retail Trade; Repair Of Motor Vehicles And Motorcycles,17-Mar-21,LRSG_2342,Courtesy Shoes Ltd,"6,000.00"
Barrow Borough Council,Closed Business Lockdown Payment,Wholesale And Retail Trade; Repair Of Motor Vehicles And Motorcycles,17-Mar-21,LRSG_2343,Cancer Research UK,"6,000.00"
Barrow Borough Council,Closed Business Lockdown Payment,Wholesale And Retail Trade; Repair Of Motor Vehicles And Motorcycles,17-Mar-21,LRSG_2344,Barton Townley (Barrow) Ltd,"9,000.00"
Barrow Borough Council,Closed Business Lockdown Payment,Wholesale And Retail Trade; Repair Of Motor Vehicles And Motorcycles,17-Mar-21,LRSG_2345,Heaths,"4,000.00"
Barrow Borough Council,Local Restrictions Support Grant (Closed) Addendum: 5 January onwards,Accommodation And Food Service Activities,17-Mar-21,LRSG_2346,Business Grant Recipient,"2,096.00"
Barrow Borough Council,Local Restrictions Support Grant (Closed) Addendum: 5 January onwards,Accommodation And Food Service Activities,17-Mar-21,LRSG_2347,Business Grant Recipient,"2,096.00"
Barrow Borough Council,Local Restrictions Support Grant (Closed) Addendum: 5 January onwards,Accommodation And Food Service Activities,17-Mar-21,LRSG_2348,The Rams Head Pub,"2,096.00"
Barrow Borough Council,Local Restrictions Support Grant (Closed) Addendum: 5 January onwards,Accommodation And Food Service Activities,17-Mar-21,LRSG_2349,Britannia Inn (Church Street) Ltd ,"2,096.00"
Barrow Borough Council,Local Restrictions Support Grant (Closed) Addendum: 5 January onwards,Accommodation And Food Service Activities,17-Mar-21,LRSG_2350,The Harbour Inn Barrow Ltd,"3,143.00"
Barrow Borough Council,Local Restrictions Support Grant (Closed) Addendum: 5 January onwards,Accommodation And Food Service Activities,17-Mar-21,LRSG_2351,Business Grant Recipient,"2,096.00"
Barrow Borough Council,Local Restrictions Support Grant (Closed) Addendum: 5 January onwards,Accommodation And Food Service Activities,17-Mar-21,LRSG_2352,"Nautical Club,","2,096.00"
Barrow Borough Council,Local Restrictions Support Grant (Closed) Addendum: 5 January onwards,Accommodation And Food Service Activities,17-Mar-21,LRSG_2353,Harrbains Ltd,"3,143.00"
Barrow Borough Council,Local Restrictions Support Grant (Closed) Addendum: 5 January onwards,Accommodation And Food Service Activities,17-Mar-21,LRSG_2354,The Lounge Group Limited,"3,143.00"
Barrow Borough Council,Local Restrictions Support Grant (Closed) Addendum: 5 January onwards,Accommodation And Food Service Activities,17-Mar-21,LRSG_2355,Mk'S Liverpool Ltd,"2,096.00"
Barrow Borough Council,Local Restrictions Support Grant (Closed) Addendum: 5 January onwards,Accommodation And Food Service Activities,17-Mar-21,LRSG_2356,"Greengate Workingmen'S,","2,096.00"
Barrow Borough Council,Local Restrictions Support Grant (Closed) Addendum: 5 January onwards,Accommodation And Food Service Activities,17-Mar-21,LRSG_2357,Central Preston st working mens club,"2,096.00"
Barrow Borough Council,Local Restrictions Support Grant (Closed) Addendum: 5 January onwards,Accommodation And Food Service Activities,17-Mar-21,LRSG_2358,Business Grant Recipient,"2,096.00"
Barrow Borough Council,Local Restrictions Support Grant (Closed) Addendum: 5 January onwards,Accommodation And Food Service Activities,17-Mar-21,LRSG_2359,Business Grant Recipient,"2,096.00"
Barrow Borough Council,Local Restrictions Support Grant (Closed) Addendum: 5 January onwards,Accommodation And Food Service Activities,17-Mar-21,LRSG_2360,Hawthorn Leisure Honey Ltd,"3,143.00"
Barrow Borough Council,Local Restrictions Support Grant (Closed) Addendum: 5 January onwards,Accommodation And Food Service Activities,17-Mar-21,LRSG_2361,Barrow Labour Club,"2,096.00"
Barrow Borough Council,Local Restrictions Support Grant (Closed) Addendum: 5 January onwards,Accommodation And Food Service Activities,17-Mar-21,LRSG_2362,"British Legion Club,","2,096.00"
Barrow Borough Council,Local Restrictions Support Grant (Closed) Addendum: 5 January onwards,Accommodation And Food Service Activities,17-Mar-21,LRSG_2363,Business Grant Recipient,"3,143.00"
Barrow Borough Council,Local Restrictions Support Grant (Closed) Addendum: 5 January onwards,Accommodation And Food Service Activities,17-Mar-21,LRSG_2364,Business Grant Recipient,"2,096.00"
Barrow Borough Council,Local Restrictions Support Grant (Closed) Addendum: 5 January onwards,Accommodation And Food Service Activities,17-Mar-21,LRSG_2365,Amber Taverns Limited,"3,143.00"
Barrow Borough Council,Local Restrictions Support Grant (Closed) Addendum: 5 January onwards,Accommodation And Food Service Activities,17-Mar-21,LRSG_2366,Manhattans Barrow Limited,"3,143.00"
Barrow Borough Council,Local Restrictions Support Grant (Closed) Addendum: 5 January onwards,Accommodation And Food Service Activities,17-Mar-21,LRSG_2367,Business Grant Recipient,"2,096.00"
Barrow Borough Council,Local Restrictions Support Grant (Closed) Addendum: 5 January onwards,Accommodation And Food Service Activities,17-Mar-21,LRSG_2368,Lemmy Barrow Ltd,"3,143.00"
Barrow Borough Council,Local Restrictions Support Grant (Closed) Addendum: 5 January onwards,Accommodation And Food Service Activities,17-Mar-21,LRSG_2369,Business Grant Recipient,"2,096.00"
Barrow Borough Council,Local Restrictions Support Grant (Closed) Addendum: 5 January onwards,Accommodation And Food Service Activities,17-Mar-21,LRSG_2370,Business Grant Recipient,"2,096.00"
Barrow Borough Council,Local Restrictions Support Grant (Closed) Addendum: 5 January onwards,Accommodation And Food Service Activities,17-Mar-21,LRSG_2371,Business Grant Recipient,"2,096.00"
Barrow Borough Council,Local Restrictions Support Grant (Closed) Addendum: 5 January onwards,Accommodation And Food Service Activities,17-Mar-21,LRSG_2372,Barrow Arms ,"3,143.00"
Barrow Borough Council,Local Restrictions Support Grant (Closed) Addendum: 5 January onwards,Accommodation And Food Service Activities,17-Mar-21,LRSG_2373,Roa Island Boating Club Ltd,"2,096.00"
Barrow Borough Council,Local Restrictions Support Grant (Closed) Addendum: 5 January onwards,"Arts, Entertainment And Recreation",17-Mar-21,LRSG_2374,Duddon Sports & Social Club,"2,096.00"
Barrow Borough Council,Local Restrictions Support Grant (Closed) Addendum: 5 January onwards,Wholesale And Retail Trade; Repair Of Motor Vehicles And Motorcycles,17-Mar-21,LRSG_2375,maiquez Limited,"3,143.00"
Barrow Borough Council,Local Restrictions Support Grant (Closed) Addendum: 5 January onwards,Accommodation And Food Service Activities,17-Mar-21,LRSG_2376,Diamond (Barrow) Ltd,"2,096.00"
Barrow Borough Council,Local Restrictions Support Grant (Closed) Addendum: 5 January onwards,Accommodation And Food Service Activities,17-Mar-21,LRSG_2377,Barrow Fiesta ,"3,143.00"
Barrow Borough Council,Local Restrictions Support Grant (Closed) Addendum: 5 January onwards,"Arts, Entertainment And Recreation",17-Mar-21,LRSG_2378,Business Grant Recipient,"2,096.00"
Barrow Borough Council,Local Restrictions Support Grant (Closed) Addendum: 5 January onwards,Accommodation And Food Service Activities,17-Mar-21,LRSG_2379,Business Grant Recipient,"2,096.00"
Barrow Borough Council,Local Restrictions Support Grant (Closed) Addendum: 5 January onwards,"Arts, Entertainment And Recreation",17-Mar-21,LRSG_2380,Business Grant Recipient,"2,096.00"
Barrow Borough Council,Local Restrictions Support Grant (Closed) Addendum: 5 January onwards,Accommodation And Food Service Activities,17-Mar-21,LRSG_2381,Business Grant Recipient,"3,143.00"
Barrow Borough Council,Local Restrictions Support Grant (Closed) Addendum: 5 January onwards,"Arts, Entertainment And Recreation",17-Mar-21,LRSG_2382,Business Grant Recipient,"2,096.00"
Barrow Borough Council,Local Restrictions Support Grant (Closed) Addendum: 5 January onwards,Accommodation And Food Service Activities,17-Mar-21,LRSG_2383,Lara Gibbons Ltd,"2,096.00"
Barrow Borough Council,Local Restrictions Support Grant (Closed) Addendum: 5 January onwards,Accommodation And Food Service Activities,17-Mar-21,LRSG_2384,Abbey Mill Coffee Shop,"2,096.00"
Barrow Borough Council,Local Restrictions Support Grant (Closed) Addendum: 5 January onwards,Accommodation And Food Service Activities,17-Mar-21,LRSG_2385,Business Grant Recipient,"2,096.00"
Barrow Borough Council,Local Restrictions Support Grant (Closed) Addendum: 5 January onwards,"Arts, Entertainment And Recreation",17-Mar-21,LRSG_2386,Furness Golf Club,"3,143.00"
Barrow Borough Council,Local Restrictions Support Grant (Closed) Addendum: 5 January onwards,"Arts, Entertainment And Recreation",17-Mar-21,LRSG_2387,The Dunnerholme Golf Club,"2,096.00"
Barrow Borough Council,Local Restrictions Support Grant (Closed) Addendum: 5 January onwards,"Arts, Entertainment And Recreation",17-Mar-21,LRSG_2388,Coop sports and social Club,"2,096.00"
Barrow Borough Council,Local Restrictions Support Grant (Closed) Addendum: 5 January onwards,Accommodation And Food Service Activities,17-Mar-21,LRSG_2389,Business Grant Recipient,"2,096.00"
Barrow Borough Council,Local Restrictions Support Grant (Closed) Addendum: 5 January onwards,"Arts, Entertainment And Recreation",17-Mar-21,LRSG_2390,Furness Rugby Union Football Club,"2,096.00"
Barrow Borough Council,Local Restrictions Support Grant (Closed) Addendum: 5 January onwards,Accommodation And Food Service Activities,17-Mar-21,LRSG_2391,Business Grant Recipient,"3,143.00"
Barrow Borough Council,Local Restrictions Support Grant (Closed) Addendum: 5 January onwards,"Arts, Entertainment And Recreation",17-Mar-21,LRSG_2392,LQ (Cumbria) Ltd,"3,143.00"
Barrow Borough Council,Local Restrictions Support Grant (Closed) Addendum: 5 January onwards,Accommodation And Food Service Activities,17-Mar-21,LRSG_2393,Baam Siam Barrow Limited,"2,096.00"
Barrow Borough Council,Local Restrictions Support Grant (Closed) Addendum: 5 January onwards,Accommodation And Food Service Activities,17-Mar-21,LRSG_2394,Abbey House Hotel (Cumbria) Ltd,"4,714.00"
Barrow Borough Council,Local Restrictions Support Grant (Closed) Addendum: 5 January onwards,Accommodation And Food Service Activities,17-Mar-21,LRSG_2395,Business Grant Recipient,"2,096.00"
Barrow Borough Council,Local Restrictions Support Grant (Closed) Addendum: 5 January onwards,Accommodation And Food Service Activities,17-Mar-21,LRSG_2396,Hoperiver Limited,"3,143.00"
Barrow Borough Council,Local Restrictions Support Grant (Closed) Addendum: 5 January onwards,Accommodation And Food Service Activities,17-Mar-21,LRSG_2397,Business Grant Recipient,"2,096.00"
Barrow Borough Council,Local Restrictions Support Grant (Closed) Addendum: 5 January onwards,Accommodation And Food Service Activities,17-Mar-21,LRSG_2398,Business Grant Recipient,"2,096.00"
Barrow Borough Council,Local Restrictions Support Grant (Closed) Addendum: 5 January onwards,Accommodation And Food Service Activities,17-Mar-21,LRSG_2399,Business Grant Recipient,"3,143.00"
Barrow Borough Council,Local Restrictions Support Grant (Closed) Addendum: 5 January onwards,Accommodation And Food Service Activities,17-Mar-21,LRSG_2400,Business Grant Recipient,"2,096.00"
Barrow Borough Council,Local Restrictions Support Grant (Closed) Addendum: 5 January onwards,"Arts, Entertainment And Recreation",17-Mar-21,LRSG_2401,West Shore Bowling Club,"2,096.00"
Barrow Borough Council,Local Restrictions Support Grant (Closed) Addendum: 5 January onwards,"Arts, Entertainment And Recreation",17-Mar-21,LRSG_2402,Askam United Football Club,"2,096.00"
Barrow Borough Council,Local Restrictions Support Grant (Closed) Addendum: 5 January onwards,"Arts, Entertainment And Recreation",17-Mar-21,LRSG_2403,Furness Gymnastics Club,"3,143.00"
Barrow Borough Council,Local Restrictions Support Grant (Closed) Addendum: 5 January onwards,"Arts, Entertainment And Recreation",17-Mar-21,LRSG_2404,Little Subs Barrow Ltd,"3,143.00"
Barrow Borough Council,Local Restrictions Support Grant (Closed) Addendum: 5 January onwards,Accommodation And Food Service Activities,17-Mar-21,LRSG_2405,Dalton Cricket Club,"2,096.00"
Barrow Borough Council,Local Restrictions Support Grant (Closed) Addendum: 5 January onwards,"Arts, Entertainment And Recreation",17-Mar-21,LRSG_2406,Barrow Cricket Club ,"2,096.00"
Barrow Borough Council,Local Restrictions Support Grant (Closed) Addendum: 5 January onwards,Accommodation And Food Service Activities,17-Mar-21,LRSG_2407,Business Grant Recipient,"4,714.00"
Barrow Borough Council,Local Restrictions Support Grant (Closed) Addendum: 5 January onwards,Accommodation And Food Service Activities,17-Mar-21,LRSG_2408,Maisonette at the Brown Cow,"2,096.00"
Barrow Borough Council,Local Restrictions Support Grant (Closed) Addendum: 5 January onwards,Accommodation And Food Service Activities,17-Mar-21,LRSG_2409,Business Grant Recipient,"2,096.00"
Barrow Borough Council,Local Restrictions Support Grant (Closed) Addendum: 5 January onwards,Accommodation And Food Service Activities,17-Mar-21,LRSG_2410,Business Grant Recipient,"2,096.00"
Barrow Borough Council,Local Restrictions Support Grant (Closed) Addendum: 5 January onwards,Accommodation And Food Service Activities,17-Mar-21,LRSG_2411,Business Grant Recipient,"2,096.00"
Barrow Borough Council,Local Restrictions Support Grant (Closed) Addendum: 5 January onwards,Accommodation And Food Service Activities,17-Mar-21,LRSG_2412,Business Grant Recipient,"2,096.00"
Barrow Borough Council,Local Restrictions Support Grant (Closed) Addendum: 5 January onwards,Accommodation And Food Service Activities,17-Mar-21,LRSG_2413,Royal Naval Association Club,"2,096.00"
Barrow Borough Council,Local Restrictions Support Grant (Closed) Addendum: 5 January onwards,Accommodation And Food Service Activities,17-Mar-21,LRSG_2414,Business Grant Recipient,"3,143.00"
Barrow Borough Council,Local Restrictions Support Grant (Closed) Addendum: 5 January onwards,Accommodation And Food Service Activities,17-Mar-21,LRSG_2415,Vickerstown cricket and tennis club ,"2,096.00"
Barrow Borough Council,Local Restrictions Support Grant (Closed) Addendum: 5 January onwards,"Arts, Entertainment And Recreation",17-Mar-21,LRSG_2416,Dalton Leisure Services Ltd,"4,714.00"
Barrow Borough Council,Local Restrictions Support Grant (Closed) Addendum: 5 January onwards,Accommodation And Food Service Activities,17-Mar-21,LRSG_2417,Business Grant Recipient,"2,096.00"
Barrow Borough Council,Local Restrictions Support Grant (Closed) Addendum: 5 January onwards,Accommodation And Food Service Activities,17-Mar-21,LRSG_2418,David Clark Properties ,"3,143.00"
Barrow Borough Council,Local Restrictions Support Grant (Closed) Addendum: 5 January onwards,Accommodation And Food Service Activities,17-Mar-21,LRSG_2419,Kill One Club,"2,096.00"
Barrow Borough Council,Local Restrictions Support Grant (Closed) Addendum: 5 January onwards,"Arts, Entertainment And Recreation",17-Mar-21,LRSG_2420,Cumbria Pole Art Ltd,"2,096.00"
Barrow Borough Council,Local Restrictions Support Grant (Closed) Addendum: 5 January onwards,"Arts, Entertainment And Recreation",17-Mar-21,LRSG_2421,Hoops Basketball Centre,"3,143.00"
Barrow Borough Council,Local Restrictions Support Grant (Closed) Addendum: 5 January onwards,"Arts, Entertainment And Recreation",17-Mar-21,LRSG_2422,Infinity Gymnastics,"2,096.00"
Barrow Borough Council,Local Restrictions Support Grant (Closed) Addendum: 5 January onwards,Accommodation And Food Service Activities,17-Mar-21,LRSG_2423,Ambrose Hotel,"3,143.00"
Barrow Borough Council,Local Restrictions Support Grant (Closed) Addendum: 5 January onwards,"Arts, Entertainment And Recreation",17-Mar-21,LRSG_2424,Business Grant Recipient,"2,096.00"
Barrow Borough Council,Local Restrictions Support Grant (Closed) Addendum: 5 January onwards,Accommodation And Food Service Activities,17-Mar-21,LRSG_2425,Business Grant Recipient,"2,096.00"
Barrow Borough Council,Local Restrictions Support Grant (Closed) Addendum: 5 January onwards,Accommodation And Food Service Activities,17-Mar-21,LRSG_2426,Business Grant Recipient,"2,096.00"
Barrow Borough Council,Local Restrictions Support Grant (Closed) Addendum: 5 January onwards,Accommodation And Food Service Activities,17-Mar-21,LRSG_2427,GPW Leisure,"2,096.00"
Barrow Borough Council,Local Restrictions Support Grant (Closed) Addendum: 5 January onwards,Accommodation And Food Service Activities,17-Mar-21,LRSG_2428,Business Grant Recipient,"2,096.00"
Barrow Borough Council,Local Restrictions Support Grant (Closed) Addendum: 5 January onwards,Accommodation And Food Service Activities,17-Mar-21,LRSG_2429,CHAD in Askam Limited,"2,096.00"
Barrow Borough Council,Local Restrictions Support Grant (Closed) Addendum: 5 January onwards,"Arts, Entertainment And Recreation",17-Mar-21,LRSG_2430,Barrow Underground Music Society,"2,096.00"
Barrow Borough Council,Local Restrictions Support Grant (Closed) Addendum: 5 January onwards,Accommodation And Food Service Activities,17-Mar-21,LRSG_2431,Walney Island South End Caravan Site ,"4,714.00"
Barrow Borough Council,Local Restrictions Support Grant (Closed) Addendum: 5 January onwards,Accommodation And Food Service Activities,17-Mar-21,LRSG_2432,Business Grant Recipient,"2,096.00"
Barrow Borough Council,Local Restrictions Support Grant (Closed) Addendum: 5 January onwards,Accommodation And Food Service Activities,17-Mar-21,LRSG_2433,Business Grant Recipient,"3,143.00"
Barrow Borough Council,Local Restrictions Support Grant (Closed) Addendum: 5 January onwards,Wholesale And Retail Trade; Repair Of Motor Vehicles And Motorcycles,17-Mar-21,LRSG_2434,Gold Planner Ltd,"3,143.00"
Barrow Borough Council,Local Restrictions Support Grant (Closed) Addendum: 5 January onwards,Accommodation And Food Service Activities,17-Mar-21,LRSG_2435,Business Grant Recipient,"4,714.00"
Barrow Borough Council,Local Restrictions Support Grant (Closed) Addendum: 5 January onwards,Accommodation And Food Service Activities,17-Mar-21,LRSG_2436,Hawcoat Park Ltd,"3,143.00"
Barrow Borough Council,Local Restrictions Support Grant (Closed) Addendum: 5 January onwards,Accommodation And Food Service Activities,17-Mar-21,LRSG_2437,Business Grant Recipient,"2,096.00"
Barrow Borough Council,Local Restrictions Support Grant (Closed) Addendum: 5 January onwards,Accommodation And Food Service Activities,17-Mar-21,LRSG_2438,Business Grant Recipient,"2,096.00"
Barrow Borough Council,Local Restrictions Support Grant (Closed) Addendum: 5 January onwards,Accommodation And Food Service Activities,17-Mar-21,LRSG_2439,Lucidity Group/Townhouse,"3,143.00"
Barrow Borough Council,Local Restrictions Support Grant (Closed) Addendum: 5 January onwards,Accommodation And Food Service Activities,17-Mar-21,LRSG_2440,Business Grant Recipient,"2,096.00"
Barrow Borough Council,Local Restrictions Support Grant (Closed) Addendum: 5 January onwards,Accommodation And Food Service Activities,17-Mar-21,LRSG_2441,Sweet Pepper Caf� Ltd,"2,096.00"
Barrow Borough Council,Local Restrictions Support Grant (Closed) Addendum: 5 January onwards,Accommodation And Food Service Activities,17-Mar-21,LRSG_2442,Business Grant Recipient,"2,096.00"
Barrow Borough Council,Local Restrictions Support Grant (Closed) Addendum: 5 January onwards,Accommodation And Food Service Activities,17-Mar-21,LRSG_2443,Eden Retreat Ltd,"2,096.00"
Barrow Borough Council,Local Restrictions Support Grant (Closed) Addendum: 5 January onwards,Accommodation And Food Service Activities,17-Mar-21,LRSG_2444,Business Grant Recipient,"2,096.00"
Barrow Borough Council,Local Restrictions Support Grant (Closed) Addendum: 5 January onwards,Accommodation And Food Service Activities,17-Mar-21,LRSG_2445,Diggles Ltd,"3,143.00"
Barrow Borough Council,Local Restrictions Support Grant (Closed) Addendum: 5 January onwards,Accommodation And Food Service Activities,17-Mar-21,LRSG_2446,RHBB Ltd T/A The Royal Hotel ,"3,143.00"
Barrow Borough Council,Local Restrictions Support Grant (Closed) Addendum: 5 January onwards,Accommodation And Food Service Activities,17-Mar-21,LRSG_2447,Business Grant Recipient,"2,096.00"
Barrow Borough Council,Local Restrictions Support Grant (Closed) Addendum: 5 January onwards,Accommodation And Food Service Activities,17-Mar-21,LRSG_2448,Marilyns (Barrow) Limited,"3,143.00"
Barrow Borough Council,Local Restrictions Support Grant (Closed) Addendum: 5 January onwards,"Arts, Entertainment And Recreation",17-Mar-21,LRSG_2449,Elite Dance & Fitness Ltd,"2,096.00"
Barrow Borough Council,Local Restrictions Support Grant (Closed) Addendum: 5 January onwards,Accommodation And Food Service Activities,17-Mar-21,LRSG_2450,Business Grant Recipient,"2,096.00"
Barrow Borough Council,Local Restrictions Support Grant (Closed) Addendum: 5 January onwards,Accommodation And Food Service Activities,17-Mar-21,LRSG_2451,Bar 20 Dalton Limited,"2,096.00"
Barrow Borough Council,Local Restrictions Support Grant (Closed) Addendum: 5 January onwards,Accommodation And Food Service Activities,17-Mar-21,LRSG_2452,Izgara Barrow Limited,"2,096.00"
Barrow Borough Council,Local Restrictions Support Grant (Closed) Addendum: 5 January onwards,"Arts, Entertainment And Recreation",17-Mar-21,LRSG_2453,Crossfit Barrow,"2,096.00"
Barrow Borough Council,Local Restrictions Support Grant (Closed) Addendum: 5 January onwards,Accommodation And Food Service Activities,17-Mar-21,LRSG_2454,Business Grant Recipient,"2,096.00"
Barrow Borough Council,Local Restrictions Support Grant (Closed) Addendum: 5 January onwards,Accommodation And Food Service Activities,17-Mar-21,LRSG_2455, BLUEBIRD HOTELS LIMITED,"3,143.00"
Barrow Borough Council,Local Restrictions Support Grant (Closed) Addendum: 5 January onwards,Accommodation And Food Service Activities,17-Mar-21,LRSG_2456,Business Grant Recipient,"2,096.00"
Barrow Borough Council,Local Restrictions Support Grant (Closed) Addendum: 5 January onwards,Accommodation And Food Service Activities,17-Mar-21,LRSG_2457,Beluto Properties,"3,143.00"
Barrow Borough Council,Local Restrictions Support Grant (Closed) Addendum: 5 January onwards,Accommodation And Food Service Activities,17-Mar-21,LRSG_2458,Beluto Properties,"2,096.00"
Barrow Borough Council,Local Restrictions Support Grant (Closed) Addendum: 5 January onwards,Accommodation And Food Service Activities,17-Mar-21,LRSG_2459,Beluto Properties,"3,143.00"
Barrow Borough Council,Local Restrictions Support Grant (Closed) Addendum: 5 January onwards,Accommodation And Food Service Activities,17-Mar-21,LRSG_2460,Trident Hotels (South Lakes) 1 Limited T/A Holiday Inn Express Barrow,"4,714.00"
Barrow Borough Council,Local Restrictions Support Grant (Closed) Addendum: 5 January onwards,Accommodation And Food Service Activities,17-Mar-21,LRSG_2461,Business Grant Recipient,"2,096.00"
Barrow Borough Council,Local Restrictions Support Grant (Closed) Addendum: 5 January onwards,Accommodation And Food Service Activities,17-Mar-21,LRSG_2462,Business Grant Recipient,"2,096.00"
Barrow Borough Council,Local Restrictions Support Grant (Closed) Addendum: 5 January onwards,Accommodation And Food Service Activities,17-Mar-21,LRSG_2463,The Barrow Rugby Football Club Ltd,"2,096.00"
Barrow Borough Council,Local Restrictions Support Grant (Closed) Addendum: 5 January onwards,Wholesale And Retail Trade; Repair Of Motor Vehicles And Motorcycles,17-Mar-21,LRSG_2464,Mr Mister Ltd,"2,096.00"
Barrow Borough Council,Local Restrictions Support Grant (Closed) Addendum: 5 January onwards,Wholesale And Retail Trade; Repair Of Motor Vehicles And Motorcycles,17-Mar-21,LRSG_2465,Cumbria Embroidery & Print ,"2,096.00"
Barrow Borough Council,Local Restrictions Support Grant (Closed) Addendum: 5 January onwards,Wholesale And Retail Trade; Repair Of Motor Vehicles And Motorcycles,17-Mar-21,LRSG_2466,Business Grant Recipient,"2,096.00"
Barrow Borough Council,Local Restrictions Support Grant (Closed) Addendum: 5 January onwards,"Arts, Entertainment And Recreation",17-Mar-21,LRSG_2467,SW Lakes District Scouts,"2,096.00"
Barrow Borough Council,Local Restrictions Support Grant (Closed) Addendum: 5 January onwards,Wholesale And Retail Trade; Repair Of Motor Vehicles And Motorcycles,17-Mar-21,LRSG_2468,Autoimage Cars LTD,"2,096.00"
Barrow Borough Council,Local Restrictions Support Grant (Closed) Addendum: 5 January onwards,Wholesale And Retail Trade; Repair Of Motor Vehicles And Motorcycles,17-Mar-21,LRSG_2469,Kutz Barrow,"2,096.00"
Barrow Borough Council,Local Restrictions Support Grant (Closed) Addendum: 5 January onwards,Wholesale And Retail Trade; Repair Of Motor Vehicles And Motorcycles,17-Mar-21,LRSG_2470,Business Grant Recipient,"2,096.00"
Barrow Borough Council,Local Restrictions Support Grant (Closed) Addendum: 5 January onwards,Wholesale And Retail Trade; Repair Of Motor Vehicles And Motorcycles,17-Mar-21,LRSG_2471,Business Grant Recipient,"2,096.00"
Barrow Borough Council,Local Restrictions Support Grant (Closed) Addendum: 5 January onwards,Wholesale And Retail Trade; Repair Of Motor Vehicles And Motorcycles,17-Mar-21,LRSG_2472,Business Grant Recipient,"2,096.00"
Barrow Borough Council,Local Restrictions Support Grant (Closed) Addendum: 5 January onwards,Wholesale And Retail Trade; Repair Of Motor Vehicles And Motorcycles,17-Mar-21,LRSG_2473,Abbey Rd car sale ltd,"2,096.00"
Barrow Borough Council,Local Restrictions Support Grant (Closed) Addendum: 5 January onwards,Wholesale And Retail Trade; Repair Of Motor Vehicles And Motorcycles,17-Mar-21,LRSG_2474, HALO ENTERPRISES LIMITED,"2,096.00"
Barrow Borough Council,Local Restrictions Support Grant (Closed) Addendum: 5 January onwards,Wholesale And Retail Trade; Repair Of Motor Vehicles And Motorcycles,17-Mar-21,LRSG_2475,Cutting Edge Dalton Ltd,"2,096.00"
Barrow Borough Council,Local Restrictions Support Grant (Closed) Addendum: 5 January onwards,Wholesale And Retail Trade; Repair Of Motor Vehicles And Motorcycles,17-Mar-21,LRSG_2476,Business Grant Recipient,"2,096.00"
Barrow Borough Council,Local Restrictions Support Grant (Closed) Addendum: 5 January onwards,Wholesale And Retail Trade; Repair Of Motor Vehicles And Motorcycles,17-Mar-21,LRSG_2477,Business Grant Recipient,"2,096.00"
Barrow Borough Council,Local Restrictions Support Grant (Closed) Addendum: 5 January onwards,Wholesale And Retail Trade; Repair Of Motor Vehicles And Motorcycles,17-Mar-21,LRSG_2478,Radiance Beauty,"2,096.00"
Barrow Borough Council,Local Restrictions Support Grant (Closed) Addendum: 5 January onwards,Wholesale And Retail Trade; Repair Of Motor Vehicles And Motorcycles,17-Mar-21,LRSG_2479,So Silver,"2,096.00"
Barrow Borough Council,Local Restrictions Support Grant (Closed) Addendum: 5 January onwards,Wholesale And Retail Trade; Repair Of Motor Vehicles And Motorcycles,17-Mar-21,LRSG_2480,Lads and Dads Clothing Ltd,"2,096.00"
Barrow Borough Council,Local Restrictions Support Grant (Closed) Addendum: 5 January onwards,Wholesale And Retail Trade; Repair Of Motor Vehicles And Motorcycles,17-Mar-21,LRSG_2481,"RWE Tanning Ltd, T/A The Sun Shack","2,096.00"
Barrow Borough Council,Local Restrictions Support Grant (Closed) Addendum: 5 January onwards,Wholesale And Retail Trade; Repair Of Motor Vehicles And Motorcycles,17-Mar-21,LRSG_2482,Business Grant Recipient,"2,096.00"
Barrow Borough Council,Local Restrictions Support Grant (Closed) Addendum: 5 January onwards,Wholesale And Retail Trade; Repair Of Motor Vehicles And Motorcycles,17-Mar-21,LRSG_2483,Business Grant Recipient,"2,096.00"
Barrow Borough Council,Local Restrictions Support Grant (Closed) Addendum: 5 January onwards,Wholesale And Retail Trade; Repair Of Motor Vehicles And Motorcycles,17-Mar-21,LRSG_2484,Maiquez Limited,"3,143.00"
Barrow Borough Council,Local Restrictions Support Grant (Closed) Addendum: 5 January onwards,Wholesale And Retail Trade; Repair Of Motor Vehicles And Motorcycles,17-Mar-21,LRSG_2485,Business Grant Recipient,"2,096.00"
Barrow Borough Council,Local Restrictions Support Grant (Closed) Addendum: 5 January onwards,Wholesale And Retail Trade; Repair Of Motor Vehicles And Motorcycles,17-Mar-21,LRSG_2486,Efflorescence Ltd,"2,096.00"
Barrow Borough Council,Local Restrictions Support Grant (Closed) Addendum: 5 January onwards,Wholesale And Retail Trade; Repair Of Motor Vehicles And Motorcycles,17-Mar-21,LRSG_2487,Business Grant Recipient,"2,096.00"
Barrow Borough Council,Local Restrictions Support Grant (Closed) Addendum: 5 January onwards,Wholesale And Retail Trade; Repair Of Motor Vehicles And Motorcycles,17-Mar-21,LRSG_2488,Business Grant Recipient,"2,096.00"
Barrow Borough Council,Local Restrictions Support Grant (Closed) Addendum: 5 January onwards,Wholesale And Retail Trade; Repair Of Motor Vehicles And Motorcycles,17-Mar-21,LRSG_2489,Furness Furniture,"2,096.00"
Barrow Borough Council,Local Restrictions Support Grant (Closed) Addendum: 5 January onwards,Wholesale And Retail Trade; Repair Of Motor Vehicles And Motorcycles,17-Mar-21,LRSG_2490,Business Grant Recipient,"2,096.00"
Barrow Borough Council,Local Restrictions Support Grant (Closed) Addendum: 5 January onwards,Wholesale And Retail Trade; Repair Of Motor Vehicles And Motorcycles,17-Mar-21,LRSG_2491,Business Grant Recipient,"2,096.00"
Barrow Borough Council,Local Restrictions Support Grant (Closed) Addendum: 5 January onwards,Wholesale And Retail Trade; Repair Of Motor Vehicles And Motorcycles,17-Mar-21,LRSG_2492,G Richardson Gentry,"2,096.00"
Barrow Borough Council,Local Restrictions Support Grant (Closed) Addendum: 5 January onwards,Wholesale And Retail Trade; Repair Of Motor Vehicles And Motorcycles,17-Mar-21,LRSG_2493,Business Grant Recipient,"2,096.00"
Barrow Borough Council,Local Restrictions Support Grant (Closed) Addendum: 5 January onwards,Wholesale And Retail Trade; Repair Of Motor Vehicles And Motorcycles,17-Mar-21,LRSG_2494,Business Grant Recipient,"2,096.00"
Barrow Borough Council,Local Restrictions Support Grant (Closed) Addendum: 5 January onwards,Wholesale And Retail Trade; Repair Of Motor Vehicles And Motorcycles,17-Mar-21,LRSG_2495,Salon One Highfield Limited,"2,096.00"
Barrow Borough Council,Local Restrictions Support Grant (Closed) Addendum: 5 January onwards,Wholesale And Retail Trade; Repair Of Motor Vehicles And Motorcycles,17-Mar-21,LRSG_2496,Business Grant Recipient,"2,096.00"
Barrow Borough Council,Local Restrictions Support Grant (Closed) Addendum: 5 January onwards,Wholesale And Retail Trade; Repair Of Motor Vehicles And Motorcycles,17-Mar-21,LRSG_2497,Searle Audio Ltd,"2,096.00"
Barrow Borough Council,Local Restrictions Support Grant (Closed) Addendum: 5 January onwards,Wholesale And Retail Trade; Repair Of Motor Vehicles And Motorcycles,17-Mar-21,LRSG_2498,Business Grant Recipient,"2,096.00"
Barrow Borough Council,Local Restrictions Support Grant (Closed) Addendum: 5 January onwards,Wholesale And Retail Trade; Repair Of Motor Vehicles And Motorcycles,17-Mar-21,LRSG_2499,Weird or Wonderful Ltd,"2,096.00"
Barrow Borough Council,Local Restrictions Support Grant (Closed) Addendum: 5 January onwards,Wholesale And Retail Trade; Repair Of Motor Vehicles And Motorcycles,17-Mar-21,LRSG_2500,17sport,"2,096.00"
Barrow Borough Council,Local Restrictions Support Grant (Closed) Addendum: 5 January onwards,Other Service Activities,17-Mar-21,LRSG_2501,Love Yoga,"2,096.00"
Barrow Borough Council,Local Restrictions Support Grant (Closed) Addendum: 5 January onwards,Other Service Activities,17-Mar-21,LRSG_2502,Business Grant Recipient,"2,096.00"
Barrow Borough Council,Local Restrictions Support Grant (Closed) Addendum: 5 January onwards,Wholesale And Retail Trade; Repair Of Motor Vehicles And Motorcycles,17-Mar-21,LRSG_2503,Business Grant Recipient,"2,096.00"
Barrow Borough Council,Local Restrictions Support Grant (Closed) Addendum: 5 January onwards,Wholesale And Retail Trade; Repair Of Motor Vehicles And Motorcycles,17-Mar-21,LRSG_2504,Business Grant Recipient,"2,096.00"
Barrow Borough Council,Local Restrictions Support Grant (Closed) Addendum: 5 January onwards,Wholesale And Retail Trade; Repair Of Motor Vehicles And Motorcycles,17-Mar-21,LRSG_2505,Investacc Pension Trustees Limited,"2,096.00"
Barrow Borough Council,Local Restrictions Support Grant (Closed) Addendum: 5 January onwards,"Professional, Scientific And Technical Activities",17-Mar-21,LRSG_2506,Business Grant Recipient,"2,096.00"
Barrow Borough Council,Local Restrictions Support Grant (Closed) Addendum: 5 January onwards,Wholesale And Retail Trade; Repair Of Motor Vehicles And Motorcycles,17-Mar-21,LRSG_2507,Business Grant Recipient,"2,096.00"
Barrow Borough Council,Local Restrictions Support Grant (Closed) Addendum: 5 January onwards,Wholesale And Retail Trade; Repair Of Motor Vehicles And Motorcycles,17-Mar-21,LRSG_2508,Business Grant Recipient,"2,096.00"
Barrow Borough Council,Local Restrictions Support Grant (Closed) Addendum: 5 January onwards,Wholesale And Retail Trade; Repair Of Motor Vehicles And Motorcycles,17-Mar-21,LRSG_2509,Business Grant Recipient,"2,096.00"
Barrow Borough Council,Local Restrictions Support Grant (Closed) Addendum: 5 January onwards,Wholesale And Retail Trade; Repair Of Motor Vehicles And Motorcycles,17-Mar-21,LRSG_2510,J T Vehicles South Lakes Ltd,"2,096.00"
Barrow Borough Council,Local Restrictions Support Grant (Closed) Addendum: 5 January onwards,"Arts, Entertainment And Recreation",17-Mar-21,LRSG_2511,Lobo BJJ Ltd,"2,096.00"
Barrow Borough Council,Local Restrictions Support Grant (Closed) Addendum: 5 January onwards,Wholesale And Retail Trade; Repair Of Motor Vehicles And Motorcycles,17-Mar-21,LRSG_2512,Business Grant Recipient,"2,096.00"
Barrow Borough Council,Local Restrictions Support Grant (Closed) Addendum: 5 January onwards,Wholesale And Retail Trade; Repair Of Motor Vehicles And Motorcycles,17-Mar-21,LRSG_2513,Bliss pedispa ,"2,096.00"
Barrow Borough Council,Local Restrictions Support Grant (Closed) Addendum: 5 January onwards,Wholesale And Retail Trade; Repair Of Motor Vehicles And Motorcycles,17-Mar-21,LRSG_2514,Cumbria Sewing & Craft Centre Limited,"3,143.00"
Barrow Borough Council,Local Restrictions Support Grant (Closed) Addendum: 5 January onwards,Wholesale And Retail Trade; Repair Of Motor Vehicles And Motorcycles,17-Mar-21,LRSG_2515,Sweetie Pies,"2,096.00"
Barrow Borough Council,Local Restrictions Support Grant (Closed) Addendum: 5 January onwards,Wholesale And Retail Trade; Repair Of Motor Vehicles And Motorcycles,17-Mar-21,LRSG_2516,Business Grant Recipient,"2,096.00"
Barrow Borough Council,Local Restrictions Support Grant (Closed) Addendum: 5 January onwards,Wholesale And Retail Trade; Repair Of Motor Vehicles And Motorcycles,17-Mar-21,LRSG_2517,Business Grant Recipient,"2,096.00"
Barrow Borough Council,Local Restrictions Support Grant (Closed) Addendum: 5 January onwards,"Arts, Entertainment And Recreation",17-Mar-21,LRSG_2518,Graves (Cumberland) Ltd,"4,714.00"
Barrow Borough Council,Local Restrictions Support Grant (Closed) Addendum: 5 January onwards,Wholesale And Retail Trade; Repair Of Motor Vehicles And Motorcycles,17-Mar-21,LRSG_2519,Business Grant Recipient,"2,096.00"
Barrow Borough Council,Local Restrictions Support Grant (Closed) Addendum: 5 January onwards,Wholesale And Retail Trade; Repair Of Motor Vehicles And Motorcycles,17-Mar-21,LRSG_2520,Business Grant Recipient,"2,096.00"
Barrow Borough Council,Local Restrictions Support Grant (Closed) Addendum: 5 January onwards,Wholesale And Retail Trade; Repair Of Motor Vehicles And Motorcycles,17-Mar-21,LRSG_2521,Business Grant Recipient,"2,096.00"
Barrow Borough Council,Local Restrictions Support Grant (Closed) Addendum: 5 January onwards,Wholesale And Retail Trade; Repair Of Motor Vehicles And Motorcycles,17-Mar-21,LRSG_2522,Business Grant Recipient,"2,096.00"
Barrow Borough Council,Local Restrictions Support Grant (Closed) Addendum: 5 January onwards,Wholesale And Retail Trade; Repair Of Motor Vehicles And Motorcycles,17-Mar-21,LRSG_2523,Furness Laptop Repair Limited,"2,096.00"
Barrow Borough Council,Local Restrictions Support Grant (Closed) Addendum: 5 January onwards,Wholesale And Retail Trade; Repair Of Motor Vehicles And Motorcycles,17-Mar-21,LRSG_2524,Feel Fabulous Hair and Beauty Ltd,"2,096.00"
Barrow Borough Council,Local Restrictions Support Grant (Closed) Addendum: 5 January onwards,Wholesale And Retail Trade; Repair Of Motor Vehicles And Motorcycles,17-Mar-21,LRSG_2525,Business Grant Recipient,"2,096.00"
Barrow Borough Council,Local Restrictions Support Grant (Closed) Addendum: 5 January onwards,Wholesale And Retail Trade; Repair Of Motor Vehicles And Motorcycles,17-Mar-21,LRSG_2526,Business Grant Recipient,"2,096.00"
Barrow Borough Council,Local Restrictions Support Grant (Closed) Addendum: 5 January onwards,Wholesale And Retail Trade; Repair Of Motor Vehicles And Motorcycles,17-Mar-21,LRSG_2527,Business Grant Recipient,"2,096.00"
Barrow Borough Council,Local Restrictions Support Grant (Closed) Addendum: 5 January onwards,Accommodation And Food Service Activities,17-Mar-21,LRSG_2528,Crooklands Casuals Football Club,"2,096.00"
Barrow Borough Council,Local Restrictions Support Grant (Closed) Addendum: 5 January onwards,Wholesale And Retail Trade; Repair Of Motor Vehicles And Motorcycles,17-Mar-21,LRSG_2529,Special Occasions,"2,096.00"
Barrow Borough Council,Local Restrictions Support Grant (Closed) Addendum: 5 January onwards,Wholesale And Retail Trade; Repair Of Motor Vehicles And Motorcycles,17-Mar-21,LRSG_2530,HH77 LTD,"3,143.00"
Barrow Borough Council,Local Restrictions Support Grant (Closed) Addendum: 5 January onwards,Wholesale And Retail Trade; Repair Of Motor Vehicles And Motorcycles,17-Mar-21,LRSG_2531,Polished Nail and Beauty Training & Cara Tinning Skin Clinic ,"2,096.00"
Barrow Borough Council,Local Restrictions Support Grant (Closed) Addendum: 5 January onwards,Wholesale And Retail Trade; Repair Of Motor Vehicles And Motorcycles,17-Mar-21,LRSG_2532,Business Grant Recipient,"2,096.00"
Barrow Borough Council,Local Restrictions Support Grant (Closed) Addendum: 5 January onwards,Wholesale And Retail Trade; Repair Of Motor Vehicles And Motorcycles,17-Mar-21,LRSG_2533,Business Grant Recipient,"3,143.00"
Barrow Borough Council,Local Restrictions Support Grant (Closed) Addendum: 5 January onwards,Wholesale And Retail Trade; Repair Of Motor Vehicles And Motorcycles,17-Mar-21,LRSG_2534,Business Grant Recipient,"2,096.00"
Barrow Borough Council,Local Restrictions Support Grant (Closed) Addendum: 5 January onwards,Wholesale And Retail Trade; Repair Of Motor Vehicles And Motorcycles,17-Mar-21,LRSG_2535,All that glitters,"2,096.00"
Barrow Borough Council,Local Restrictions Support Grant (Closed) Addendum: 5 January onwards,Wholesale And Retail Trade; Repair Of Motor Vehicles And Motorcycles,17-Mar-21,LRSG_2536,LA CHIC,"2,096.00"
Barrow Borough Council,Local Restrictions Support Grant (Closed) Addendum: 5 January onwards,Wholesale And Retail Trade; Repair Of Motor Vehicles And Motorcycles,17-Mar-21,LRSG_2537,Posh Flowers Ltd,"2,096.00"
Barrow Borough Council,Local Restrictions Support Grant (Closed) Addendum: 5 January onwards,Wholesale And Retail Trade; Repair Of Motor Vehicles And Motorcycles,17-Mar-21,LRSG_2538,Business Grant Recipient,"2,096.00"
Barrow Borough Council,Local Restrictions Support Grant (Closed) Addendum: 5 January onwards,"Arts, Entertainment And Recreation",17-Mar-21,LRSG_2539,Dalton United Football Club,"2,096.00"
Barrow Borough Council,Local Restrictions Support Grant (Closed) Addendum: 5 January onwards,Wholesale And Retail Trade; Repair Of Motor Vehicles And Motorcycles,17-Mar-21,LRSG_2540,Business Grant Recipient,"2,096.00"
Barrow Borough Council,Local Restrictions Support Grant (Closed) Addendum: 5 January onwards,Wholesale And Retail Trade; Repair Of Motor Vehicles And Motorcycles,17-Mar-21,LRSG_2541,Pets Paradise ,"2,096.00"
Barrow Borough Council,Local Restrictions Support Grant (Closed) Addendum: 5 January onwards,Wholesale And Retail Trade; Repair Of Motor Vehicles And Motorcycles,17-Mar-21,LRSG_2542,The Little Flower Company,"2,096.00"
Barrow Borough Council,Local Restrictions Support Grant (Closed) Addendum: 5 January onwards,Wholesale And Retail Trade; Repair Of Motor Vehicles And Motorcycles,17-Mar-21,LRSG_2543,Business Grant Recipient,"2,096.00"
Barrow Borough Council,Local Restrictions Support Grant (Closed) Addendum: 5 January onwards,Accommodation And Food Service Activities,17-Mar-21,LRSG_2544,Business Grant Recipient,"2,096.00"
Barrow Borough Council,Local Restrictions Support Grant (Closed) Addendum: 5 January onwards,Wholesale And Retail Trade; Repair Of Motor Vehicles And Motorcycles,17-Mar-21,LRSG_2545,Business Grant Recipient,"2,096.00"
Barrow Borough Council,Local Restrictions Support Grant (Closed) Addendum: 5 January onwards,Accommodation And Food Service Activities,17-Mar-21,LRSG_2546,Business Grant Recipient,"2,096.00"
Barrow Borough Council,Local Restrictions Support Grant (Closed) Addendum: 5 January onwards,Wholesale And Retail Trade; Repair Of Motor Vehicles And Motorcycles,17-Mar-21,LRSG_2547,Raggz,"2,096.00"
Barrow Borough Council,Local Restrictions Support Grant (Closed) Addendum: 5 January onwards,Wholesale And Retail Trade; Repair Of Motor Vehicles And Motorcycles,17-Mar-21,LRSG_2548,Got It Covered Ltd,"2,096.00"
Barrow Borough Council,Local Restrictions Support Grant (Closed) Addendum: 5 January onwards,Wholesale And Retail Trade; Repair Of Motor Vehicles And Motorcycles,17-Mar-21,LRSG_2549,Business Grant Recipient,"2,096.00"
Barrow Borough Council,Local Restrictions Support Grant (Closed) Addendum: 5 January onwards,Wholesale And Retail Trade; Repair Of Motor Vehicles And Motorcycles,17-Mar-21,LRSG_2550,The Mane Man,"2,096.00"
Barrow Borough Council,Local Restrictions Support Grant (Closed) Addendum: 5 January onwards,Wholesale And Retail Trade; Repair Of Motor Vehicles And Motorcycles,17-Mar-21,LRSG_2551,Atomic Comica,"2,096.00"
Barrow Borough Council,Local Restrictions Support Grant (Closed) Addendum: 5 January onwards,Wholesale And Retail Trade; Repair Of Motor Vehicles And Motorcycles,17-Mar-21,LRSG_2552,Business Grant Recipient,"2,096.00"
Barrow Borough Council,Local Restrictions Support Grant (Closed) Addendum: 5 January onwards,Wholesale And Retail Trade; Repair Of Motor Vehicles And Motorcycles,17-Mar-21,LRSG_2553,Business Grant Recipient,"2,096.00"
Barrow Borough Council,Local Restrictions Support Grant (Closed) Addendum: 5 January onwards,Wholesale And Retail Trade; Repair Of Motor Vehicles And Motorcycles,17-Mar-21,LRSG_2554,Refine Medispa limited,"2,096.00"
Barrow Borough Council,Local Restrictions Support Grant (Closed) Addendum: 5 January onwards,Wholesale And Retail Trade; Repair Of Motor Vehicles And Motorcycles,17-Mar-21,LRSG_2555,Business Grant Recipient,"2,096.00"
Barrow Borough Council,Local Restrictions Support Grant (Closed) Addendum: 5 January onwards,Wholesale And Retail Trade; Repair Of Motor Vehicles And Motorcycles,17-Mar-21,LRSG_2556,Business Grant Recipient,"2,096.00"
Barrow Borough Council,Local Restrictions Support Grant (Closed) Addendum: 5 January onwards,Wholesale And Retail Trade; Repair Of Motor Vehicles And Motorcycles,17-Mar-21,LRSG_2557,Business Grant Recipient,"2,096.00"
Barrow Borough Council,Local Restrictions Support Grant (Closed) Addendum: 5 January onwards,Wholesale And Retail Trade; Repair Of Motor Vehicles And Motorcycles,17-Mar-21,LRSG_2558,DEVRO BARBERSHOP LTD,"2,096.00"
Barrow Borough Council,Local Restrictions Support Grant (Closed) Addendum: 5 January onwards,Wholesale And Retail Trade; Repair Of Motor Vehicles And Motorcycles,17-Mar-21,LRSG_2559,Business Grant Recipient,"2,096.00"
Barrow Borough Council,Local Restrictions Support Grant (Closed) Addendum: 5 January onwards,Wholesale And Retail Trade; Repair Of Motor Vehicles And Motorcycles,17-Mar-21,LRSG_2560,TNT Comms Ltd,"3,143.00"
Barrow Borough Council,Local Restrictions Support Grant (Closed) Addendum: 5 January onwards,"Arts, Entertainment And Recreation",17-Mar-21,LRSG_2561,Barrow Island Community & Sports Trust Facility ,"2,096.00"
Barrow Borough Council,Local Restrictions Support Grant (Closed) Addendum: 5 January onwards,Wholesale And Retail Trade; Repair Of Motor Vehicles And Motorcycles,17-Mar-21,LRSG_2562,Business Grant Recipient,"2,096.00"
Barrow Borough Council,Local Restrictions Support Grant (Closed) Addendum: 5 January onwards,Wholesale And Retail Trade; Repair Of Motor Vehicles And Motorcycles,17-Mar-21,LRSG_2563,vision tv,"2,096.00"
Barrow Borough Council,Local Restrictions Support Grant (Closed) Addendum: 5 January onwards,Wholesale And Retail Trade; Repair Of Motor Vehicles And Motorcycles,17-Mar-21,LRSG_2564,Speed of Sound LTD,"2,096.00"
Barrow Borough Council,Local Restrictions Support Grant (Closed) Addendum: 5 January onwards,Wholesale And Retail Trade; Repair Of Motor Vehicles And Motorcycles,17-Mar-21,LRSG_2565,David Atkinson Car Sales,"2,096.00"
Barrow Borough Council,Local Restrictions Support Grant (Closed) Addendum: 5 January onwards,Wholesale And Retail Trade; Repair Of Motor Vehicles And Motorcycles,17-Mar-21,LRSG_2566,Business Grant Recipient,"2,096.00"
Barrow Borough Council,Local Restrictions Support Grant (Closed) Addendum: 5 January onwards,Wholesale And Retail Trade; Repair Of Motor Vehicles And Motorcycles,17-Mar-21,LRSG_2567,North West Consumables,"2,096.00"
Barrow Borough Council,Local Restrictions Support Grant (Closed) Addendum: 5 January onwards,Wholesale And Retail Trade; Repair Of Motor Vehicles And Motorcycles,17-Mar-21,LRSG_2568,Darren Roby collectors,"2,096.00"
Barrow Borough Council,Local Restrictions Support Grant (Closed) Addendum: 5 January onwards,Wholesale And Retail Trade; Repair Of Motor Vehicles And Motorcycles,17-Mar-21,LRSG_2569,Business Grant Recipient,"2,096.00"
Barrow Borough Council,Local Restrictions Support Grant (Closed) Addendum: 5 January onwards,Other Service Activities,17-Mar-21,LRSG_2570,Business Grant Recipient,"2,096.00"
Barrow Borough Council,Local Restrictions Support Grant (Closed) Addendum: 5 January onwards,Wholesale And Retail Trade; Repair Of Motor Vehicles And Motorcycles,17-Mar-21,LRSG_2571,Business Grant Recipient,"3,143.00"
Barrow Borough Council,Local Restrictions Support Grant (Closed) Addendum: 5 January onwards,Wholesale And Retail Trade; Repair Of Motor Vehicles And Motorcycles,17-Mar-21,LRSG_2572,Business Grant Recipient,"2,096.00"
Barrow Borough Council,Local Restrictions Support Grant (Closed) Addendum: 5 January onwards,Wholesale And Retail Trade; Repair Of Motor Vehicles And Motorcycles,17-Mar-21,LRSG_2573,Business Grant Recipient,"2,096.00"
Barrow Borough Council,Local Restrictions Support Grant (Closed) Addendum: 5 January onwards,Wholesale And Retail Trade; Repair Of Motor Vehicles And Motorcycles,17-Mar-21,LRSG_2574,Business Grant Recipient,"2,096.00"
Barrow Borough Council,Local Restrictions Support Grant (Closed) Addendum: 5 January onwards,"Arts, Entertainment And Recreation",17-Mar-21,LRSG_2575,ESCAPE ROOM (Barrow ltd),"2,096.00"
Barrow Borough Council,Local Restrictions Support Grant (Closed) Addendum: 5 January onwards,Wholesale And Retail Trade; Repair Of Motor Vehicles And Motorcycles,17-Mar-21,LRSG_2576,Business Grant Recipient,"2,096.00"
Barrow Borough Council,Local Restrictions Support Grant (Closed) Addendum: 5 January onwards,Wholesale And Retail Trade; Repair Of Motor Vehicles And Motorcycles,17-Mar-21,LRSG_2577,Business Grant Recipient,"2,096.00"
Barrow Borough Council,Local Restrictions Support Grant (Closed) Addendum: 5 January onwards,Wholesale And Retail Trade; Repair Of Motor Vehicles And Motorcycles,17-Mar-21,LRSG_2578,Business Grant Recipient,"2,096.00"
Barrow Borough Council,Local Restrictions Support Grant (Closed) Addendum: 5 January onwards,"Arts, Entertainment And Recreation",17-Mar-21,LRSG_2579,Business Grant Recipient,"2,096.00"
Barrow Borough Council,Local Restrictions Support Grant (Closed) Addendum: 5 January onwards,Wholesale And Retail Trade; Repair Of Motor Vehicles And Motorcycles,17-Mar-21,LRSG_2580,Marsha Lee ,"2,096.00"
Barrow Borough Council,Local Restrictions Support Grant (Closed) Addendum: 5 January onwards,Other Service Activities,17-Mar-21,LRSG_2581,Business Grant Recipient,"2,096.00"
Barrow Borough Council,Local Restrictions Support Grant (Closed) Addendum: 5 January onwards,"Arts, Entertainment And Recreation",17-Mar-21,LRSG_2582,Urban Extreme Ltd,"4,714.00"
Barrow Borough Council,Local Restrictions Support Grant (Closed) Addendum: 5 January onwards,Wholesale And Retail Trade; Repair Of Motor Vehicles And Motorcycles,17-Mar-21,LRSG_2583,Susan Dunn Limited,"2,096.00"
Barrow Borough Council,Local Restrictions Support Grant (Closed) Addendum: 5 January onwards,Wholesale And Retail Trade; Repair Of Motor Vehicles And Motorcycles,17-Mar-21,LRSG_2584,Guy Perry Ltd,"3,143.00"
Barrow Borough Council,Local Restrictions Support Grant (Closed) Addendum: 5 January onwards,Accommodation And Food Service Activities,17-Mar-21,LRSG_2585,Roose Pioneers ARLFC,"2,096.00"
Barrow Borough Council,Local Restrictions Support Grant (Closed) Addendum: 5 January onwards,Wholesale And Retail Trade; Repair Of Motor Vehicles And Motorcycles,17-Mar-21,LRSG_2586,Business Grant Recipient,"2,096.00"
Barrow Borough Council,Local Restrictions Support Grant (Closed) Addendum: 5 January onwards,Wholesale And Retail Trade; Repair Of Motor Vehicles And Motorcycles,17-Mar-21,LRSG_2587,Business Grant Recipient,"2,096.00"
Barrow Borough Council,Local Restrictions Support Grant (Closed) Addendum: 5 January onwards,Wholesale And Retail Trade; Repair Of Motor Vehicles And Motorcycles,17-Mar-21,LRSG_2588,Furness Watch and Jewellery Ltd,"2,096.00"
Barrow Borough Council,Local Restrictions Support Grant (Closed) Addendum: 5 January onwards,Other Service Activities,17-Mar-21,LRSG_2589,Business Grant Recipient,"2,096.00"
Barrow Borough Council,Local Restrictions Support Grant (Closed) Addendum: 5 January onwards,Other Service Activities,17-Mar-21,LRSG_2590,MJ Hairdressing LTD Trading as The Hair Lounge,"2,096.00"
Barrow Borough Council,Local Restrictions Support Grant (Closed) Addendum: 5 January onwards,Accommodation And Food Service Activities,17-Mar-21,LRSG_2591,Transfigure Fitness Ltd,"2,096.00"
Barrow Borough Council,Local Restrictions Support Grant (Closed) Addendum: 5 January onwards,Wholesale And Retail Trade; Repair Of Motor Vehicles And Motorcycles,17-Mar-21,LRSG_2592,The Eco Shop,"2,096.00"
Barrow Borough Council,Local Restrictions Support Grant (Closed) Addendum: 5 January onwards,Accommodation And Food Service Activities,17-Mar-21,LRSG_2593,Barrow Sporting Club Limited,"2,096.00"
Barrow Borough Council,Local Restrictions Support Grant (Closed) Addendum: 5 January onwards,Other Service Activities,17-Mar-21,LRSG_2594,Asylum 287 Barbershop,"2,096.00"
Barrow Borough Council,Local Restrictions Support Grant (Closed) Addendum: 5 January onwards,Wholesale And Retail Trade; Repair Of Motor Vehicles And Motorcycles,17-Mar-21,LRSG_2595,The Vapour Bar,"2,096.00"
Barrow Borough Council,Local Restrictions Support Grant (Closed) Addendum: 5 January onwards,Wholesale And Retail Trade; Repair Of Motor Vehicles And Motorcycles,17-Mar-21,LRSG_2596,Business Grant Recipient,"2,096.00"
Barrow Borough Council,Local Restrictions Support Grant (Closed) Addendum: 5 January onwards,Wholesale And Retail Trade; Repair Of Motor Vehicles And Motorcycles,17-Mar-21,LRSG_2597,Business Grant Recipient,"2,096.00"
Barrow Borough Council,Local Restrictions Support Grant (Closed) Addendum: 5 January onwards,Wholesale And Retail Trade; Repair Of Motor Vehicles And Motorcycles,17-Mar-21,LRSG_2598,Business Grant Recipient,"2,096.00"
Barrow Borough Council,Local Restrictions Support Grant (Closed) Addendum: 5 January onwards,Wholesale And Retail Trade; Repair Of Motor Vehicles And Motorcycles,17-Mar-21,LRSG_2599,Harts the Jewellers,"2,096.00"
Barrow Borough Council,Local Restrictions Support Grant (Closed) Addendum: 5 January onwards,Other Service Activities,17-Mar-21,LRSG_2600,Business Grant Recipient,"2,096.00"
Barrow Borough Council,Local Restrictions Support Grant (Closed) Addendum: 5 January onwards,Wholesale And Retail Trade; Repair Of Motor Vehicles And Motorcycles,17-Mar-21,LRSG_2601,The Bridal House ,"2,096.00"
Barrow Borough Council,Local Restrictions Support Grant (Closed) Addendum: 5 January onwards,Wholesale And Retail Trade; Repair Of Motor Vehicles And Motorcycles,17-Mar-21,LRSG_2602, Suzie B,"2,096.00"
Barrow Borough Council,Local Restrictions Support Grant (Closed) Addendum: 5 January onwards,Other Service Activities,17-Mar-21,LRSG_2603,Business Grant Recipient,"2,096.00"
Barrow Borough Council,Local Restrictions Support Grant (Closed) Addendum: 5 January onwards,Wholesale And Retail Trade; Repair Of Motor Vehicles And Motorcycles,17-Mar-21,LRSG_2604,Business Grant Recipient,"2,096.00"
Barrow Borough Council,Local Restrictions Support Grant (Closed) Addendum: 5 January onwards,Wholesale And Retail Trade; Repair Of Motor Vehicles And Motorcycles,17-Mar-21,LRSG_2605,Business Grant Recipient,"2,096.00"
Barrow Borough Council,Local Restrictions Support Grant (Closed) Addendum: 5 January onwards,Wholesale And Retail Trade; Repair Of Motor Vehicles And Motorcycles,17-Mar-21,LRSG_2606, Paul French Salon,"2,096.00"
Barrow Borough Council,Local Restrictions Support Grant (Closed) Addendum: 5 January onwards,Wholesale And Retail Trade; Repair Of Motor Vehicles And Motorcycles,17-Mar-21,LRSG_2607,St Mary's Hospice T/A  HOSPICE OF ST MARY OF FURNESS,"2,096.00"
Barrow Borough Council,Local Restrictions Support Grant (Closed) Addendum: 5 January onwards,Wholesale And Retail Trade; Repair Of Motor Vehicles And Motorcycles,17-Mar-21,LRSG_2608,St Mary's Hospice,"4,714.00"
Barrow Borough Council,Local Restrictions Support Grant (Closed) Addendum: 5 January onwards,Wholesale And Retail Trade; Repair Of Motor Vehicles And Motorcycles,17-Mar-21,LRSG_2609,Coco Cheveux Ltd,"2,096.00"
Barrow Borough Council,Local Restrictions Support Grant (Closed) Addendum: 5 January onwards,Accommodation And Food Service Activities,17-Mar-21,LRSG_2610,Business Grant Recipient,"2,096.00"
Barrow Borough Council,Local Restrictions Support Grant (Closed) Addendum: 5 January onwards,Wholesale And Retail Trade; Repair Of Motor Vehicles And Motorcycles,17-Mar-21,LRSG_2611,South West Cumbria United Area,"2,096.00"
Barrow Borough Council,Local Restrictions Support Grant (Closed) Addendum: 5 January onwards,Other Service Activities,17-Mar-21,LRSG_2612,  Beau Laser Aesthetics,"2,096.00"
Barrow Borough Council,Local Restrictions Support Grant (Closed) Addendum: 5 January onwards,Wholesale And Retail Trade; Repair Of Motor Vehicles And Motorcycles,17-Mar-21,LRSG_2613,Elegance Hair Salon,"2,096.00"
Barrow Borough Council,Local Restrictions Support Grant (Closed) Addendum: 5 January onwards,Wholesale And Retail Trade; Repair Of Motor Vehicles And Motorcycles,17-Mar-21,LRSG_2614,A & L Crafts,"2,096.00"
Barrow Borough Council,Local Restrictions Support Grant (Closed) Addendum: 5 January onwards,Wholesale And Retail Trade; Repair Of Motor Vehicles And Motorcycles,17-Mar-21,LRSG_2615,Business Grant Recipient,"2,096.00"
Barrow Borough Council,Local Restrictions Support Grant (Closed) Addendum: 5 January onwards,Wholesale And Retail Trade; Repair Of Motor Vehicles And Motorcycles,17-Mar-21,LRSG_2616,Business Grant Recipient,"2,096.00"
Barrow Borough Council,Local Restrictions Support Grant (Closed) Addendum: 5 January onwards,Other Service Activities,17-Mar-21,LRSG_2617,Business Grant Recipient,"2,096.00"
Barrow Borough Council,Local Restrictions Support Grant (Closed) Addendum: 5 January onwards,Wholesale And Retail Trade; Repair Of Motor Vehicles And Motorcycles,17-Mar-21,LRSG_2618,A SPOT Ltd,"2,096.00"
Barrow Borough Council,Local Restrictions Support Grant (Closed) Addendum: 5 January onwards,Wholesale And Retail Trade; Repair Of Motor Vehicles And Motorcycles,17-Mar-21,LRSG_2619,TNT Records,"2,096.00"
Barrow Borough Council,Local Restrictions Support Grant (Closed) Addendum: 5 January onwards,Wholesale And Retail Trade; Repair Of Motor Vehicles And Motorcycles,17-Mar-21,LRSG_2620,The Bobby Pin,"2,096.00"
Barrow Borough Council,Local Restrictions Support Grant (Closed) Addendum: 5 January onwards,Accommodation And Food Service Activities,17-Mar-21,LRSG_2621,Business Grant Recipient,"2,096.00"
Barrow Borough Council,Local Restrictions Support Grant (Closed) Addendum: 5 January onwards,Wholesale And Retail Trade; Repair Of Motor Vehicles And Motorcycles,17-Mar-21,LRSG_2622,Business Grant Recipient,"2,096.00"
Barrow Borough Council,Local Restrictions Support Grant (Closed) Addendum: 5 January onwards,Wholesale And Retail Trade; Repair Of Motor Vehicles And Motorcycles,17-Mar-21,LRSG_2623,Business Grant Recipient,"2,096.00"
Barrow Borough Council,Local Restrictions Support Grant (Closed) Addendum: 5 January onwards,Wholesale And Retail Trade; Repair Of Motor Vehicles And Motorcycles,17-Mar-21,LRSG_2624,Business Grant Recipient,"2,096.00"
Barrow Borough Council,Local Restrictions Support Grant (Closed) Addendum: 5 January onwards,Accommodation And Food Service Activities,17-Mar-21,LRSG_2625,Masonic Hall,"2,096.00"
Barrow Borough Council,Local Restrictions Support Grant (Closed) Addendum: 5 January onwards,Wholesale And Retail Trade; Repair Of Motor Vehicles And Motorcycles,17-Mar-21,LRSG_2626,Abbey Blinds,"2,096.00"
Barrow Borough Council,Local Restrictions Support Grant (Closed) Addendum: 5 January onwards,"Arts, Entertainment And Recreation",17-Mar-21,LRSG_2627,Abbots Vale Community Centre,"2,096.00"
Barrow Borough Council,Local Restrictions Support Grant (Closed) Addendum: 5 January onwards,Wholesale And Retail Trade; Repair Of Motor Vehicles And Motorcycles,17-Mar-21,LRSG_2628,Dandy's Ltd,"3,143.00"
Barrow Borough Council,Local Restrictions Support Grant (Closed) Addendum: 5 January onwards,Wholesale And Retail Trade; Repair Of Motor Vehicles And Motorcycles,17-Mar-21,LRSG_2629,Expressions of Lancaster Ltd,"2,096.00"
Barrow Borough Council,Local Restrictions Support Grant (Closed) Addendum: 5 January onwards,Wholesale And Retail Trade; Repair Of Motor Vehicles And Motorcycles,17-Mar-21,LRSG_2630,Pozo Barber,"2,096.00"
Barrow Borough Council,Local Restrictions Support Grant (Closed) Addendum: 5 January onwards,Wholesale And Retail Trade; Repair Of Motor Vehicles And Motorcycles,17-Mar-21,LRSG_2631,Business Grant Recipient,"2,096.00"
Barrow Borough Council,Local Restrictions Support Grant (Closed) Addendum: 5 January onwards,Wholesale And Retail Trade; Repair Of Motor Vehicles And Motorcycles,17-Mar-21,LRSG_2632, Angel nails ,"2,096.00"
Barrow Borough Council,Local Restrictions Support Grant (Closed) Addendum: 5 January onwards,Wholesale And Retail Trade; Repair Of Motor Vehicles And Motorcycles,17-Mar-21,LRSG_2633,House of Hair,"2,096.00"
Barrow Borough Council,Local Restrictions Support Grant (Closed) Addendum: 5 January onwards,Wholesale And Retail Trade; Repair Of Motor Vehicles And Motorcycles,17-Mar-21,LRSG_2634,Business Grant Recipient,"2,096.00"
Barrow Borough Council,Local Restrictions Support Grant (Closed) Addendum: 5 January onwards,Other Service Activities,17-Mar-21,LRSG_2635,Tony Hand Car Wash Ltd,"2,096.00"
Barrow Borough Council,Local Restrictions Support Grant (Closed) Addendum: 5 January onwards,Wholesale And Retail Trade; Repair Of Motor Vehicles And Motorcycles,17-Mar-21,LRSG_2636,South Lakes Interiors Ltd,"2,096.00"
Barrow Borough Council,Local Restrictions Support Grant (Closed) Addendum: 5 January onwards,Other Service Activities,17-Mar-21,LRSG_2637,Business Grant Recipient,"2,096.00"
Barrow Borough Council,Local Restrictions Support Grant (Closed) Addendum: 5 January onwards,"Arts, Entertainment And Recreation",17-Mar-21,LRSG_2638,Business Grant Recipient,"2,096.00"
Barrow Borough Council,Local Restrictions Support Grant (Closed) Addendum: 5 January onwards,Wholesale And Retail Trade; Repair Of Motor Vehicles And Motorcycles,17-Mar-21,LRSG_2639,Business Grant Recipient,"2,096.00"
Barrow Borough Council,Local Restrictions Support Grant (Closed) Addendum: 5 January onwards,Wholesale And Retail Trade; Repair Of Motor Vehicles And Motorcycles,17-Mar-21,LRSG_2640,Business Grant Recipient,"2,096.00"
Barrow Borough Council,Local Restrictions Support Grant (Closed) Addendum: 5 January onwards,Wholesale And Retail Trade; Repair Of Motor Vehicles And Motorcycles,17-Mar-21,LRSG_2641,SB Wallpaper,"2,096.00"
Barrow Borough Council,Local Restrictions Support Grant (Closed) Addendum: 5 January onwards,Wholesale And Retail Trade; Repair Of Motor Vehicles And Motorcycles,17-Mar-21,LRSG_2642,Ian Ford Books Limited ,"2,096.00"
Barrow Borough Council,Local Restrictions Support Grant (Closed) Addendum: 5 January onwards,Wholesale And Retail Trade; Repair Of Motor Vehicles And Motorcycles,17-Mar-21,LRSG_2643,All Style Tattoos Ltd,"2,096.00"
Barrow Borough Council,Local Restrictions Support Grant (Closed) Addendum: 5 January onwards,Wholesale And Retail Trade; Repair Of Motor Vehicles And Motorcycles,17-Mar-21,LRSG_2644,Istanbul Barber,"2,096.00"
Barrow Borough Council,Local Restrictions Support Grant (Closed) Addendum: 5 January onwards,Wholesale And Retail Trade; Repair Of Motor Vehicles And Motorcycles,17-Mar-21,LRSG_2645,Business Grant Recipient,"2,096.00"
Barrow Borough Council,Local Restrictions Support Grant (Closed) Addendum: 5 January onwards,Wholesale And Retail Trade; Repair Of Motor Vehicles And Motorcycles,17-Mar-21,LRSG_2646,Mind In Furness,"2,096.00"
Barrow Borough Council,Local Restrictions Support Grant (Closed) Addendum: 5 January onwards,Wholesale And Retail Trade; Repair Of Motor Vehicles And Motorcycles,17-Mar-21,LRSG_2647,Business Grant Recipient,"2,096.00"
Barrow Borough Council,Local Restrictions Support Grant (Closed) Addendum: 5 January onwards,Wholesale And Retail Trade; Repair Of Motor Vehicles And Motorcycles,17-Mar-21,LRSG_2648,Business Grant Recipient,"2,096.00"
Barrow Borough Council,Local Restrictions Support Grant (Closed) Addendum: 5 January onwards,Wholesale And Retail Trade; Repair Of Motor Vehicles And Motorcycles,17-Mar-21,LRSG_2649,Business Grant Recipient,"2,096.00"
Barrow Borough Council,Local Restrictions Support Grant (Closed) Addendum: 5 January onwards,Wholesale And Retail Trade; Repair Of Motor Vehicles And Motorcycles,17-Mar-21,LRSG_2650,The Owl Sanctuary,"2,096.00"
Barrow Borough Council,Local Restrictions Support Grant (Closed) Addendum: 5 January onwards,Other Service Activities,17-Mar-21,LRSG_2651,SA Salon ,"2,096.00"
Barrow Borough Council,Local Restrictions Support Grant (Closed) Addendum: 5 January onwards,Wholesale And Retail Trade; Repair Of Motor Vehicles And Motorcycles,17-Mar-21,LRSG_2652,Business Grant Recipient,"2,096.00"
Barrow Borough Council,Local Restrictions Support Grant (Closed) Addendum: 5 January onwards,"Arts, Entertainment And Recreation",17-Mar-21,LRSG_2653,Holker Old Boys Football Club,"2,096.00"
Barrow Borough Council,Local Restrictions Support Grant (Closed) Addendum: 5 January onwards,"Arts, Entertainment And Recreation",17-Mar-21,LRSG_2654,Free Spirit Academy of Dance and Acrobatics Ltd,"2,096.00"
Barrow Borough Council,Local Restrictions Support Grant (Closed) Addendum: 5 January onwards,Wholesale And Retail Trade; Repair Of Motor Vehicles And Motorcycles,17-Mar-21,LRSG_2655,South Lakes Cars,"2,096.00"
Barrow Borough Council,Local Restrictions Support Grant (Closed) Addendum: 5 January onwards,"Arts, Entertainment And Recreation",17-Mar-21,LRSG_2656,Reaching Wellness Ltd,"2,096.00"
Barrow Borough Council,Local Restrictions Support Grant (Closed) Addendum: 5 January onwards,Wholesale And Retail Trade; Repair Of Motor Vehicles And Motorcycles,17-Mar-21,LRSG_2657,The Body Shop International,"3,143.00"
Barrow Borough Council,Local Restrictions Support Grant (Closed) Addendum: 5 January onwards,Wholesale And Retail Trade; Repair Of Motor Vehicles And Motorcycles,17-Mar-21,LRSG_2658,Business Grant Recipient,"2,096.00"
Barrow Borough Council,Local Restrictions Support Grant (Closed) Addendum: 5 January onwards,Wholesale And Retail Trade; Repair Of Motor Vehicles And Motorcycles,17-Mar-21,LRSG_2659,Business Grant Recipient,"2,096.00"
Barrow Borough Council,Local Restrictions Support Grant (Closed) Addendum: 5 January onwards,Wholesale And Retail Trade; Repair Of Motor Vehicles And Motorcycles,17-Mar-21,LRSG_2660,Business Grant Recipient,"2,096.00"
Barrow Borough Council,Local Restrictions Support Grant (Closed) Addendum: 5 January onwards,Wholesale And Retail Trade; Repair Of Motor Vehicles And Motorcycles,17-Mar-21,LRSG_2661,Business Grant Recipient,"2,096.00"
Barrow Borough Council,Local Restrictions Support Grant (Closed) Addendum: 5 January onwards,Accommodation And Food Service Activities,17-Mar-21,LRSG_2662,Business Grant Recipient,"2,096.00"
Barrow Borough Council,Local Restrictions Support Grant (Closed) Addendum: 5 January onwards,Wholesale And Retail Trade; Repair Of Motor Vehicles And Motorcycles,17-Mar-21,LRSG_2663,Fat Bobs CDs Ltd,"2,096.00"
Barrow Borough Council,Local Restrictions Support Grant (Closed) Addendum: 5 January onwards,Wholesale And Retail Trade; Repair Of Motor Vehicles And Motorcycles,17-Mar-21,LRSG_2664,Business Grant Recipient,"3,143.00"
Barrow Borough Council,Local Restrictions Support Grant (Closed) Addendum: 5 January onwards,Wholesale And Retail Trade; Repair Of Motor Vehicles And Motorcycles,17-Mar-21,LRSG_2665,Animal Welfare (Furness),"2,096.00"
Barrow Borough Council,Local Restrictions Support Grant (Closed) Addendum: 5 January onwards,Wholesale And Retail Trade; Repair Of Motor Vehicles And Motorcycles,17-Mar-21,LRSG_2666,Animal Welfare (Furness),"2,096.00"
Barrow Borough Council,Local Restrictions Support Grant (Closed) Addendum: 5 January onwards,Wholesale And Retail Trade; Repair Of Motor Vehicles And Motorcycles,17-Mar-21,LRSG_2667,Business Grant Recipient,"2,096.00"
Barrow Borough Council,Local Restrictions Support Grant (Closed) Addendum: 5 January onwards,Wholesale And Retail Trade; Repair Of Motor Vehicles And Motorcycles,17-Mar-21,LRSG_2668,Pye Motors Ltd,"3,143.00"
Barrow Borough Council,Local Restrictions Support Grant (Closed) Addendum: 5 January onwards,Wholesale And Retail Trade; Repair Of Motor Vehicles And Motorcycles,17-Mar-21,LRSG_2669,Business Grant Recipient,"2,096.00"
Barrow Borough Council,Local Restrictions Support Grant (Closed) Addendum: 5 January onwards,Accommodation And Food Service Activities,17-Mar-21,LRSG_2670,Furness Cricket Club,"2,096.00"
Barrow Borough Council,Local Restrictions Support Grant (Closed) Addendum: 5 January onwards,"Arts, Entertainment And Recreation",17-Mar-21,LRSG_2671,Cumbria Zoo Co Ltd,"4,714.00"
Barrow Borough Council,Local Restrictions Support Grant (Closed) Addendum: 5 January onwards,Wholesale And Retail Trade; Repair Of Motor Vehicles And Motorcycles,17-Mar-21,LRSG_2672,Mobility Solutions Barrow Ltd,"2,096.00"
Barrow Borough Council,Local Restrictions Support Grant (Closed) Addendum: 5 January onwards,Wholesale And Retail Trade; Repair Of Motor Vehicles And Motorcycles,17-Mar-21,LRSG_2673,Business Grant Recipient,"2,096.00"
Barrow Borough Council,Local Restrictions Support Grant (Closed) Addendum: 5 January onwards,Wholesale And Retail Trade; Repair Of Motor Vehicles And Motorcycles,17-Mar-21,LRSG_2674,CJS Car Sales,"2,096.00"
Barrow Borough Council,Local Restrictions Support Grant (Closed) Addendum: 5 January onwards,Wholesale And Retail Trade; Repair Of Motor Vehicles And Motorcycles,17-Mar-21,LRSG_2675,Business Grant Recipient,"2,096.00"
Barrow Borough Council,Local Restrictions Support Grant (Closed) Addendum: 5 January onwards,Other Service Activities,17-Mar-21,LRSG_2676,Business Grant Recipient,"2,096.00"
Barrow Borough Council,Local Restrictions Support Grant (Closed) Addendum: 5 January onwards,"Arts, Entertainment And Recreation",17-Mar-21,LRSG_2677,Vue Entertainment Ltd,"4,714.00"
Barrow Borough Council,Local Restrictions Support Grant (Closed) Addendum: 5 January onwards,Wholesale And Retail Trade; Repair Of Motor Vehicles And Motorcycles,17-Mar-21,LRSG_2678,Window Worx Ltd T/A The Wet Room,"2,096.00"
Barrow Borough Council,Local Restrictions Support Grant (Closed) Addendum: 5 January onwards,Wholesale And Retail Trade; Repair Of Motor Vehicles And Motorcycles,17-Mar-21,LRSG_2679,Business Grant Recipient,"2,096.00"
Barrow Borough Council,Local Restrictions Support Grant (Closed) Addendum: 5 January onwards,Wholesale And Retail Trade; Repair Of Motor Vehicles And Motorcycles,17-Mar-21,LRSG_2680, hair Flair Ltd,"2,096.00"
Barrow Borough Council,Local Restrictions Support Grant (Closed) Addendum: 5 January onwards,Wholesale And Retail Trade; Repair Of Motor Vehicles And Motorcycles,17-Mar-21,LRSG_2681,Waklin Ltd T/A Cash Generator,"3,143.00"
Barrow Borough Council,Local Restrictions Support Grant (Closed) Addendum: 5 January onwards,Wholesale And Retail Trade; Repair Of Motor Vehicles And Motorcycles,17-Mar-21,LRSG_2682,Stollers Furniture World Limited,"4,714.00"
Barrow Borough Council,Local Restrictions Support Grant (Closed) Addendum: 5 January onwards,Wholesale And Retail Trade; Repair Of Motor Vehicles And Motorcycles,17-Mar-21,LRSG_2683,Business Grant Recipient,"2,096.00"
Barrow Borough Council,Local Restrictions Support Grant (Closed) Addendum: 5 January onwards,Wholesale And Retail Trade; Repair Of Motor Vehicles And Motorcycles,17-Mar-21,LRSG_2684,Definitions /Light,"2,096.00"
Barrow Borough Council,Local Restrictions Support Grant (Closed) Addendum: 5 January onwards,Wholesale And Retail Trade; Repair Of Motor Vehicles And Motorcycles,17-Mar-21,LRSG_2685,Business Grant Recipient,"2,096.00"
Barrow Borough Council,Local Restrictions Support Grant (Closed) Addendum: 5 January onwards,Wholesale And Retail Trade; Repair Of Motor Vehicles And Motorcycles,17-Mar-21,LRSG_2686,Business Grant Recipient,"2,096.00"
Barrow Borough Council,Local Restrictions Support Grant (Closed) Addendum: 5 January onwards,Accommodation And Food Service Activities,17-Mar-21,LRSG_2687,Business Grant Recipient,"2,096.00"
Barrow Borough Council,Local Restrictions Support Grant (Closed) Addendum: 5 January onwards,Wholesale And Retail Trade; Repair Of Motor Vehicles And Motorcycles,17-Mar-21,LRSG_2688,Business Grant Recipient,"2,096.00"
Barrow Borough Council,Local Restrictions Support Grant (Closed) Addendum: 5 January onwards,Wholesale And Retail Trade; Repair Of Motor Vehicles And Motorcycles,17-Mar-21,LRSG_2689,Premier Tiles Barrow-in-Furness Ltd,"3,143.00"
Barrow Borough Council,Local Restrictions Support Grant (Closed) Addendum: 5 January onwards,Accommodation And Food Service Activities,17-Mar-21,LRSG_2690,Business Grant Recipient,"2,096.00"
Barrow Borough Council,Local Restrictions Support Grant (Closed) Addendum: 5 January onwards,Accommodation And Food Service Activities,17-Mar-21,LRSG_2691,"Barrow Afc Supporters Club,","2,096.00"
Barrow Borough Council,Local Restrictions Support Grant (Closed) Addendum: 5 January onwards,Wholesale And Retail Trade; Repair Of Motor Vehicles And Motorcycles,17-Mar-21,LRSG_2692,Business Grant Recipient,"2,096.00"
Barrow Borough Council,Local Restrictions Support Grant (Closed) Addendum: 5 January onwards,"Arts, Entertainment And Recreation",17-Mar-21,LRSG_2693,South Lakes Rock School,"2,096.00"
Barrow Borough Council,Local Restrictions Support Grant (Closed) Addendum: 5 January onwards,Wholesale And Retail Trade; Repair Of Motor Vehicles And Motorcycles,17-Mar-21,LRSG_2694,Lakeland Leisure,"2,096.00"
Barrow Borough Council,Local Restrictions Support Grant (Closed) Addendum: 5 January onwards,Other Service Activities,17-Mar-21,LRSG_2695,Business Grant Recipient,"2,096.00"
Barrow Borough Council,Local Restrictions Support Grant (Closed) Addendum: 5 January onwards,Other Service Activities,17-Mar-21,LRSG_2696,Bank hair and beauty ,"2,096.00"
Barrow Borough Council,Local Restrictions Support Grant (Closed) Addendum: 5 January onwards,"Arts, Entertainment And Recreation",17-Mar-21,LRSG_2697,Barrow Island Bowling Club,"2,096.00"
Barrow Borough Council,Local Restrictions Support Grant (Closed) Addendum: 5 January onwards,Wholesale And Retail Trade; Repair Of Motor Vehicles And Motorcycles,17-Mar-21,LRSG_2698,Business Grant Recipient,"2,096.00"
Barrow Borough Council,Local Restrictions Support Grant (Closed) Addendum: 5 January onwards,Wholesale And Retail Trade; Repair Of Motor Vehicles And Motorcycles,17-Mar-21,LRSG_2699,Business Grant Recipient,"2,096.00"
Barrow Borough Council,Local Restrictions Support Grant (Closed) Addendum: 5 January onwards,Wholesale And Retail Trade; Repair Of Motor Vehicles And Motorcycles,17-Mar-21,LRSG_2700,Business Grant Recipient,"2,096.00"
Barrow Borough Council,Local Restrictions Support Grant (Closed) Addendum: 5 January onwards,Accommodation And Food Service Activities,17-Mar-21,LRSG_2701,Business Grant Recipient,"2,096.00"
Barrow Borough Council,Local Restrictions Support Grant (Closed) Addendum: 5 January onwards,Wholesale And Retail Trade; Repair Of Motor Vehicles And Motorcycles,17-Mar-21,LRSG_2702,Mobility Solutions Barrow Ltd,"2,096.00"
Barrow Borough Council,Local Restrictions Support Grant (Closed) Addendum: 5 January onwards,Wholesale And Retail Trade; Repair Of Motor Vehicles And Motorcycles,17-Mar-21,LRSG_2703,Business Grant Recipient,"2,096.00"
Barrow Borough Council,Local Restrictions Support Grant (Closed) Addendum: 5 January onwards,Accommodation And Food Service Activities,17-Mar-21,LRSG_2704,Specpride Limited,"2,096.00"
Barrow Borough Council,Local Restrictions Support Grant (Closed) Addendum: 5 January onwards,Wholesale And Retail Trade; Repair Of Motor Vehicles And Motorcycles,17-Mar-21,LRSG_2705,Business Grant Recipient,"2,096.00"
Barrow Borough Council,Local Restrictions Support Grant (Closed) Addendum: 5 January onwards,Wholesale And Retail Trade; Repair Of Motor Vehicles And Motorcycles,17-Mar-21,LRSG_2706,Business Grant Recipient,"2,096.00"
Barrow Borough Council,Local Restrictions Support Grant (Closed) Addendum: 5 January onwards,Wholesale And Retail Trade; Repair Of Motor Vehicles And Motorcycles,17-Mar-21,LRSG_2707,Business Grant Recipient,"2,096.00"
Barrow Borough Council,Local Restrictions Support Grant (Closed) Addendum: 5 January onwards,"Arts, Entertainment And Recreation",17-Mar-21,LRSG_2708,Furness Pistol/Rifle Club,"2,096.00"
Barrow Borough Council,Local Restrictions Support Grant (Closed) Addendum: 5 January onwards,Accommodation And Food Service Activities,17-Mar-21,LRSG_2709,Business Grant Recipient,"2,096.00"
Barrow Borough Council,Local Restrictions Support Grant (Closed) Addendum: 5 January onwards,Wholesale And Retail Trade; Repair Of Motor Vehicles And Motorcycles,17-Mar-21,LRSG_2710,Dunelm soft furnishings Plc,"4,714.00"
Barrow Borough Council,Local Restrictions Support Grant (Closed) Addendum: 5 January onwards,Wholesale And Retail Trade; Repair Of Motor Vehicles And Motorcycles,17-Mar-21,LRSG_2711,Business Grant Recipient,"2,096.00"
Barrow Borough Council,Local Restrictions Support Grant (Closed) Addendum: 5 January onwards,"Arts, Entertainment And Recreation",17-Mar-21,LRSG_2712,Signal Films,"2,096.00"
Barrow Borough Council,Local Restrictions Support Grant (Closed) Addendum: 5 January onwards,"Arts, Entertainment And Recreation",17-Mar-21,LRSG_2713,Signal Films,"2,096.00"
Barrow Borough Council,Local Restrictions Support Grant (Closed) Addendum: 5 January onwards,Wholesale And Retail Trade; Repair Of Motor Vehicles And Motorcycles,17-Mar-21,LRSG_2714,Business Grant Recipient,"2,096.00"
Barrow Borough Council,Local Restrictions Support Grant (Closed) Addendum: 5 January onwards,Wholesale And Retail Trade; Repair Of Motor Vehicles And Motorcycles,17-Mar-21,LRSG_2715,Business Grant Recipient,"2,096.00"
Barrow Borough Council,Local Restrictions Support Grant (Closed) Addendum: 5 January onwards,Other Service Activities,17-Mar-21,LRSG_2716,Business Grant Recipient,"2,096.00"
Barrow Borough Council,Local Restrictions Support Grant (Closed) Addendum: 5 January onwards,Accommodation And Food Service Activities,17-Mar-21,LRSG_2717,The Ninetailed Fox Cafe,"2,096.00"
Barrow Borough Council,Local Restrictions Support Grant (Closed) Addendum: 5 January onwards,"Arts, Entertainment And Recreation",17-Mar-21,LRSG_2718,THE INDEPENDENT JIU-JITSU ASSOCIATION,"2,096.00"
Barrow Borough Council,Local Restrictions Support Grant (Closed) Addendum: 5 January onwards,Wholesale And Retail Trade; Repair Of Motor Vehicles And Motorcycles,17-Mar-21,LRSG_2719,Matt Johnson Prestige LTD,"3,143.00"
Barrow Borough Council,Local Restrictions Support Grant (Closed) Addendum: 5 January onwards,Wholesale And Retail Trade; Repair Of Motor Vehicles And Motorcycles,17-Mar-21,LRSG_2720,Business Grant Recipient,"2,096.00"
Barrow Borough Council,Local Restrictions Support Grant (Closed) Addendum: 5 January onwards,Wholesale And Retail Trade; Repair Of Motor Vehicles And Motorcycles,17-Mar-21,LRSG_2721,Business Grant Recipient,"3,143.00"
Barrow Borough Council,Local Restrictions Support Grant (Closed) Addendum: 5 January onwards,Wholesale And Retail Trade; Repair Of Motor Vehicles And Motorcycles,17-Mar-21,LRSG_2722,Business Grant Recipient,"2,096.00"
Barrow Borough Council,Local Restrictions Support Grant (Closed) Addendum: 5 January onwards,Wholesale And Retail Trade; Repair Of Motor Vehicles And Motorcycles,17-Mar-21,LRSG_2723,Crafty Hobbies,"2,096.00"
Barrow Borough Council,Local Restrictions Support Grant (Closed) Addendum: 5 January onwards,Wholesale And Retail Trade; Repair Of Motor Vehicles And Motorcycles,17-Mar-21,LRSG_2724, Head Office Furness,"2,096.00"
Barrow Borough Council,Local Restrictions Support Grant (Closed) Addendum: 5 January onwards,"Arts, Entertainment And Recreation",17-Mar-21,LRSG_2725,Business Grant Recipient,"2,096.00"
Barrow Borough Council,Local Restrictions Support Grant (Closed) Addendum: 5 January onwards,Other Service Activities,17-Mar-21,LRSG_2726,Boss Hair Studio,"2,096.00"
Barrow Borough Council,Local Restrictions Support Grant (Closed) Addendum: 5 January onwards,"Arts, Entertainment And Recreation",17-Mar-21,LRSG_2727,Roose Bowling Club,"2,096.00"
Barrow Borough Council,Local Restrictions Support Grant (Closed) Addendum: 5 January onwards,Accommodation And Food Service Activities,17-Mar-21,LRSG_2728,The Black Dog Inn,"2,096.00"
Barrow Borough Council,Local Restrictions Support Grant (Closed) Addendum: 5 January onwards,Accommodation And Food Service Activities,17-Mar-21,LRSG_2729,Business Grant Recipient,"2,096.00"
Barrow Borough Council,Local Restrictions Support Grant (Closed) Addendum: 5 January onwards,Accommodation And Food Service Activities,17-Mar-21,LRSG_2730,Business Grant Recipient,"2,096.00"
Barrow Borough Council,Local Restrictions Support Grant (Closed) Addendum: 5 January onwards,Wholesale And Retail Trade; Repair Of Motor Vehicles And Motorcycles,17-Mar-21,LRSG_2731,MBR Motorsports Ltd ,"2,096.00"
Barrow Borough Council,Local Restrictions Support Grant (Closed) Addendum: 5 January onwards,Wholesale And Retail Trade; Repair Of Motor Vehicles And Motorcycles,17-Mar-21,LRSG_2732,Business Grant Recipient,"2,096.00"
Barrow Borough Council,Local Restrictions Support Grant (Closed) Addendum: 5 January onwards,Wholesale And Retail Trade; Repair Of Motor Vehicles And Motorcycles,17-Mar-21,LRSG_2733,Business Grant Recipient,"2,096.00"
Barrow Borough Council,Local Restrictions Support Grant (Closed) Addendum: 5 January onwards,Wholesale And Retail Trade; Repair Of Motor Vehicles And Motorcycles,17-Mar-21,LRSG_2734,Business Grant Recipient,"2,096.00"
Barrow Borough Council,Local Restrictions Support Grant (Closed) Addendum: 5 January onwards,Accommodation And Food Service Activities,17-Mar-21,LRSG_2735,The Sun Inn,"4,714.00"
Barrow Borough Council,Local Restrictions Support Grant (Closed) Addendum: 5 January onwards,Accommodation And Food Service Activities,17-Mar-21,LRSG_2736,Business Grant Recipient,"2,096.00"
Barrow Borough Council,Local Restrictions Support Grant (Closed) Addendum: 5 January onwards,Accommodation And Food Service Activities,17-Mar-21,LRSG_2737,Business Grant Recipient,"2,096.00"
Barrow Borough Council,Local Restrictions Support Grant (Closed) Addendum: 5 January onwards,"Arts, Entertainment And Recreation",17-Mar-21,LRSG_2738,Askam rugby club,"2,096.00"
Barrow Borough Council,Local Restrictions Support Grant (Closed) Addendum: 5 January onwards,Other Service Activities,17-Mar-21,LRSG_2739,Headstart ,"2,096.00"
Barrow Borough Council,Local Restrictions Support Grant (Closed) Addendum: 5 January onwards,Wholesale And Retail Trade; Repair Of Motor Vehicles And Motorcycles,17-Mar-21,LRSG_2740, JayJays Electricals,"2,096.00"
Barrow Borough Council,Local Restrictions Support Grant (Closed) Addendum: 5 January onwards,Wholesale And Retail Trade; Repair Of Motor Vehicles And Motorcycles,17-Mar-21,LRSG_2741,Ryman Limited,"3,143.00"
Barrow Borough Council,Local Restrictions Support Grant (Closed) Addendum: 5 January onwards,Wholesale And Retail Trade; Repair Of Motor Vehicles And Motorcycles,17-Mar-21,LRSG_2742,Business Grant Recipient,"2,096.00"
Barrow Borough Council,Local Restrictions Support Grant (Closed) Addendum: 5 January onwards,"Arts, Entertainment And Recreation",17-Mar-21,LRSG_2743,Walney Island FC ,"2,096.00"
Barrow Borough Council,Local Restrictions Support Grant (Closed) Addendum: 5 January onwards,Wholesale And Retail Trade; Repair Of Motor Vehicles And Motorcycles,17-Mar-21,LRSG_2744,Business Grant Recipient,"2,096.00"
Barrow Borough Council,Local Restrictions Support Grant (Closed) Addendum: 5 January onwards,Wholesale And Retail Trade; Repair Of Motor Vehicles And Motorcycles,17-Mar-21,LRSG_2745,Phone Gadgets 4U Ltd,"2,096.00"
Barrow Borough Council,Local Restrictions Support Grant (Closed) Addendum: 5 January onwards,Wholesale And Retail Trade; Repair Of Motor Vehicles And Motorcycles,17-Mar-21,LRSG_2746,Angling and Hiking Centre,"2,096.00"
Barrow Borough Council,Local Restrictions Support Grant (Closed) Addendum: 5 January onwards,Accommodation And Food Service Activities,17-Mar-21,LRSG_2747,Business Grant Recipient,"2,096.00"
Barrow Borough Council,Local Restrictions Support Grant (Closed) Addendum: 5 January onwards,Wholesale And Retail Trade; Repair Of Motor Vehicles And Motorcycles,17-Mar-21,LRSG_2748,Glo Tanning Salon,"2,096.00"
Barrow Borough Council,Local Restrictions Support Grant (Closed) Addendum: 5 January onwards,Wholesale And Retail Trade; Repair Of Motor Vehicles And Motorcycles,17-Mar-21,LRSG_2749,Business Grant Recipient,"2,096.00"
Barrow Borough Council,Local Restrictions Support Grant (Closed) Addendum: 5 January onwards,Wholesale And Retail Trade; Repair Of Motor Vehicles And Motorcycles,17-Mar-21,LRSG_2750,Clean Wright ,"2,096.00"
Barrow Borough Council,Local Restrictions Support Grant (Closed) Addendum: 5 January onwards,Accommodation And Food Service Activities,17-Mar-21,LRSG_2751,The Craft Union Pub Company Limited T/A Wellington Hotel,"3,143.00"
Barrow Borough Council,Local Restrictions Support Grant (Closed) Addendum: 5 January onwards,Wholesale And Retail Trade; Repair Of Motor Vehicles And Motorcycles,17-Mar-21,LRSG_2752,Pine Designs,"2,096.00"
Barrow Borough Council,Local Restrictions Support Grant (Closed) Addendum: 5 January onwards,Wholesale And Retail Trade; Repair Of Motor Vehicles And Motorcycles,17-Mar-21,LRSG_2753,Business Grant Recipient,"2,096.00"
Barrow Borough Council,Local Restrictions Support Grant (Closed) Addendum: 5 January onwards,Accommodation And Food Service Activities,17-Mar-21,LRSG_2754,L & J Restaurants LTD,"2,096.00"
Barrow Borough Council,Local Restrictions Support Grant (Closed) Addendum: 5 January onwards,"Arts, Entertainment And Recreation",17-Mar-21,LRSG_2755,Buccleuch Village Hall,"2,096.00"
Barrow Borough Council,Local Restrictions Support Grant (Closed) Addendum: 5 January onwards,Wholesale And Retail Trade; Repair Of Motor Vehicles And Motorcycles,17-Mar-21,LRSG_2756,GR & MM Blackledge PLC,"3,143.00"
Barrow Borough Council,Local Restrictions Support Grant (Closed) Addendum: 5 January onwards,Wholesale And Retail Trade; Repair Of Motor Vehicles And Motorcycles,17-Mar-21,LRSG_2757,Global Education Trust,"3,143.00"
Barrow Borough Council,Local Restrictions Support Grant (Closed) Addendum: 5 January onwards,Wholesale And Retail Trade; Repair Of Motor Vehicles And Motorcycles,17-Mar-21,LRSG_2758,T&J Photographic,"2,096.00"
Barrow Borough Council,Local Restrictions Support Grant (Closed) Addendum: 5 January onwards,"Arts, Entertainment And Recreation",17-Mar-21,LRSG_2759,North Scale Residents Association,"2,096.00"
Barrow Borough Council,Local Restrictions Support Grant (Closed) Addendum: 5 January onwards,"Arts, Entertainment And Recreation",17-Mar-21,LRSG_2760,Dalton Communty Association,"2,096.00"
Barrow Borough Council,Local Restrictions Support Grant (Closed) Addendum: 5 January onwards,"Arts, Entertainment And Recreation",17-Mar-21,LRSG_2761,Barrow Celtic Fc,"2,096.00"
Barrow Borough Council,Local Restrictions Support Grant (Closed) Addendum: 5 January onwards,Wholesale And Retail Trade; Repair Of Motor Vehicles And Motorcycles,17-Mar-21,LRSG_2762,Business Grant Recipient,"2,096.00"
Barrow Borough Council,Local Restrictions Support Grant (Closed) Addendum: 5 January onwards,Wholesale And Retail Trade; Repair Of Motor Vehicles And Motorcycles,17-Mar-21,LRSG_2763,Anthony Wright Portrait Studio,"2,096.00"
Barrow Borough Council,Local Restrictions Support Grant (Closed) Addendum: 5 January onwards,Wholesale And Retail Trade; Repair Of Motor Vehicles And Motorcycles,17-Mar-21,LRSG_2764,Whitley Hall LTD T/A Cex,"2,096.00"
Barrow Borough Council,Local Restrictions Support Grant (Closed) Addendum: 5 January onwards,Wholesale And Retail Trade; Repair Of Motor Vehicles And Motorcycles,17-Mar-21,LRSG_2765,Max Spielmann Ltd,"3,143.00"
Barrow Borough Council,Local Restrictions Support Grant (Closed) Addendum: 5 January onwards,Wholesale And Retail Trade; Repair Of Motor Vehicles And Motorcycles,17-Mar-21,LRSG_2766,Business Grant Recipient,"2,096.00"
Barrow Borough Council,Local Restrictions Support Grant (Closed) Addendum: 5 January onwards,Wholesale And Retail Trade; Repair Of Motor Vehicles And Motorcycles,17-Mar-21,LRSG_2767,Business Grant Recipient,"2,096.00"
Barrow Borough Council,Local Restrictions Support Grant (Closed) Addendum: 5 January onwards,Accommodation And Food Service Activities,17-Mar-21,LRSG_2768,The Lodge (Accommodation) Ltd,"2,096.00"
Barrow Borough Council,Local Restrictions Support Grant (Closed) Addendum: 5 January onwards,Accommodation And Food Service Activities,17-Mar-21,LRSG_2769,Walney Island South End Caravan Site Ltd T/A King Alfred Hotel,"3,143.00"
Barrow Borough Council,Local Restrictions Support Grant (Closed) Addendum: 5 January onwards,Accommodation And Food Service Activities,17-Mar-21,LRSG_2770, Aquaflo proerty,"2,096.00"
Barrow Borough Council,Local Restrictions Support Grant (Closed) Addendum: 5 January onwards,Accommodation And Food Service Activities,17-Mar-21,LRSG_2771,Business Grant Recipient,"3,143.00"
Barrow Borough Council,Local Restrictions Support Grant (Closed) Addendum: 5 January onwards,"Arts, Entertainment And Recreation",17-Mar-21,LRSG_2772,Dalton RLFC,"2,096.00"
Barrow Borough Council,Local Restrictions Support Grant (Closed) Addendum: 5 January onwards,"Arts, Entertainment And Recreation",17-Mar-21,LRSG_2773,Dalton Girl Guide Association,"2,096.00"
Barrow Borough Council,Local Restrictions Support Grant (Closed) Addendum: 5 January onwards,Wholesale And Retail Trade; Repair Of Motor Vehicles And Motorcycles,17-Mar-21,LRSG_2774,Business Grant Recipient,"2,096.00"
Barrow Borough Council,Local Restrictions Support Grant (Closed) Addendum: 5 January onwards,Wholesale And Retail Trade; Repair Of Motor Vehicles And Motorcycles,17-Mar-21,LRSG_2775,Astra Print,"2,096.00"
Barrow Borough Council,Local Restrictions Support Grant (Closed) Addendum: 5 January onwards,"Arts, Entertainment And Recreation",17-Mar-21,LRSG_2776,Walney Park Crown Green Bowling Club,"2,096.00"
Barrow Borough Council,Local Restrictions Support Grant (Closed) Addendum: 5 January onwards,Wholesale And Retail Trade; Repair Of Motor Vehicles And Motorcycles,17-Mar-21,LRSG_2777,Furness Heating Components Ltd,"3,143.00"
Barrow Borough Council,Local Restrictions Support Grant (Closed) Addendum: 5 January onwards,"Arts, Entertainment And Recreation",17-Mar-21,LRSG_2778,Walney Community Trust,"2,096.00"
Barrow Borough Council,Local Restrictions Support Grant (Closed) Addendum: 5 January onwards,Wholesale And Retail Trade; Repair Of Motor Vehicles And Motorcycles,17-Mar-21,LRSG_2779,The Salon,"2,096.00"
Barrow Borough Council,Local Restrictions Support Grant (Closed) Addendum: 5 January onwards,Wholesale And Retail Trade; Repair Of Motor Vehicles And Motorcycles,17-Mar-21,LRSG_2780,D Stoker Group Ltd,"4,714.00"
Barrow Borough Council,Local Restrictions Support Grant (Closed) Addendum: 5 January onwards,"Arts, Entertainment And Recreation",17-Mar-21,LRSG_2781,King Alfred Bowling Club,"2,096.00"
Barrow Borough Council,Local Restrictions Support Grant (Closed) Addendum: 5 January onwards,Wholesale And Retail Trade; Repair Of Motor Vehicles And Motorcycles,17-Mar-21,LRSG_2782,The Sofa Group TSG Cumbria,"3,143.00"
Barrow Borough Council,Local Restrictions Support Grant (Closed) Addendum: 5 January onwards,Wholesale And Retail Trade; Repair Of Motor Vehicles And Motorcycles,17-Mar-21,LRSG_2783,Business Grant Recipient,"2,096.00"
Barrow Borough Council,Local Restrictions Support Grant (Closed) Addendum: 5 January onwards,"Arts, Entertainment And Recreation",17-Mar-21,LRSG_2784,Furness health studio ,"2,096.00"
Barrow Borough Council,Local Restrictions Support Grant (Closed) Addendum: 5 January onwards,Wholesale And Retail Trade; Repair Of Motor Vehicles And Motorcycles,17-Mar-21,LRSG_2785,Unicut ,"2,096.00"
Barrow Borough Council,Local Restrictions Support Grant (Closed) Addendum: 5 January onwards,Accommodation And Food Service Activities,17-Mar-21,LRSG_2786,Trustees of Biggar bank Caravan Association T/A Salt Marsh Caravan Park,"2,096.00"
Barrow Borough Council,Local Restrictions Support Grant (Closed) Addendum: 5 January onwards,Wholesale And Retail Trade; Repair Of Motor Vehicles And Motorcycles,17-Mar-21,LRSG_2787,Sally Salon Services Ltd,"3,143.00"
Barrow Borough Council,Local Restrictions Support Grant (Closed) Addendum: 5 January onwards,Wholesale And Retail Trade; Repair Of Motor Vehicles And Motorcycles,17-Mar-21,LRSG_2788,Business Grant Recipient,"2,096.00"
Barrow Borough Council,Local Restrictions Support Grant (Closed) Addendum: 5 January onwards,Accommodation And Food Service Activities,17-Mar-21,LRSG_2789,Business Grant Recipient,"2,096.00"
Barrow Borough Council,Local Restrictions Support Grant (Closed) Addendum: 5 January onwards,"Arts, Entertainment And Recreation",17-Mar-21,LRSG_2790,Dazzle for Children & Young People,"2,096.00"
Barrow Borough Council,Local Restrictions Support Grant (Closed) Addendum: 5 January onwards,Wholesale And Retail Trade; Repair Of Motor Vehicles And Motorcycles,17-Mar-21,LRSG_2791,Game Retail Ltd,"3,143.00"
Barrow Borough Council,Local Restrictions Support Grant (Closed) Addendum: 5 January onwards,Wholesale And Retail Trade; Repair Of Motor Vehicles And Motorcycles,17-Mar-21,LRSG_2792,Hays Travel Ltd,"2,096.00"
Barrow Borough Council,Local Restrictions Support Grant (Closed) Addendum: 5 January onwards,Wholesale And Retail Trade; Repair Of Motor Vehicles And Motorcycles,17-Mar-21,LRSG_2793,Pampered Pooch,"2,096.00"
Barrow Borough Council,Local Restrictions Support Grant (Closed) Addendum: 5 January onwards,"Arts, Entertainment And Recreation",17-Mar-21,LRSG_2794,Barrow Golf Club,"3,143.00"
Barrow Borough Council,Local Restrictions Support Grant (Closed) Addendum: 5 January onwards,Wholesale And Retail Trade; Repair Of Motor Vehicles And Motorcycles,17-Mar-21,LRSG_2795,Bensons for beds Retail ltd,"4,714.00"
Barrow Borough Council,Local Restrictions Support Grant (Closed) Addendum: 5 January onwards,Accommodation And Food Service Activities,17-Mar-21,LRSG_2796,Nichas Thai kitchen,"2,096.00"
Barrow Borough Council,Local Restrictions Support Grant (Closed) Addendum: 5 January onwards,Wholesale And Retail Trade; Repair Of Motor Vehicles And Motorcycles,17-Mar-21,LRSG_2797, Cheeky Fun Ltd,"2,096.00"
Barrow Borough Council,Local Restrictions Support Grant (Closed) Addendum: 5 January onwards,"Arts, Entertainment And Recreation",17-Mar-21,LRSG_2798,Kite School and Premises,"2,096.00"
Barrow Borough Council,Local Restrictions Support Grant (Closed) Addendum: 5 January onwards,"Arts, Entertainment And Recreation",17-Mar-21,LRSG_2799,Furness Homeless Support group,"2,096.00"
Barrow Borough Council,Local Restrictions Support Grant (Closed) Addendum: 5 January onwards,"Arts, Entertainment And Recreation",17-Mar-21,LRSG_2800,Furness Homeless Support group,"2,096.00"
Barrow Borough Council,Local Restrictions Support Grant (Closed) Addendum: 5 January onwards,Wholesale And Retail Trade; Repair Of Motor Vehicles And Motorcycles,17-Mar-21,LRSG_2801,Business Grant Recipient,"2,096.00"
Barrow Borough Council,Local Restrictions Support Grant (Closed) Addendum: 5 January onwards,Accommodation And Food Service Activities,17-Mar-21,LRSG_2802,Vantage Leisure LTD,"2,096.00"
Barrow Borough Council,Local Restrictions Support Grant (Closed) Addendum: 5 January onwards,Accommodation And Food Service Activities,17-Mar-21,LRSG_2803,Aquaflo proerty,"2,096.00"
Barrow Borough Council,Local Restrictions Support Grant (Closed) Addendum: 5 January onwards,"Arts, Entertainment And Recreation",17-Mar-21,LRSG_2804, Barrow ABC Brook St Gym,"2,096.00"
Barrow Borough Council,Local Restrictions Support Grant (Closed) Addendum: 5 January onwards,Accommodation And Food Service Activities,17-Mar-21,LRSG_2805,Greene King Pub Co,"4,714.00"
Barrow Borough Council,Local Restrictions Support Grant (Closed) Addendum: 5 January onwards,Accommodation And Food Service Activities,17-Mar-21,LRSG_2806,Greene King Pub Co,"4,714.00"
Barrow Borough Council,Local Restrictions Support Grant (Closed) Addendum: 5 January onwards,Wholesale And Retail Trade; Repair Of Motor Vehicles And Motorcycles,17-Mar-21,LRSG_2807,Odette hairdressers,"2,096.00"
Barrow Borough Council,Local Restrictions Support Grant (Closed) Addendum: 5 January onwards,Wholesale And Retail Trade; Repair Of Motor Vehicles And Motorcycles,17-Mar-21,LRSG_2808,Home Images,"2,096.00"
Barrow Borough Council,Local Restrictions Support Grant (Closed) Addendum: 5 January onwards,"Arts, Entertainment And Recreation",17-Mar-21,LRSG_2809,St Matthews Community Halls,"2,096.00"
Barrow Borough Council,Local Restrictions Support Grant (Closed) Addendum: 5 January onwards,Wholesale And Retail Trade; Repair Of Motor Vehicles And Motorcycles,17-Mar-21,LRSG_2810,Business Grant Recipient,"2,096.00"
Barrow Borough Council,Local Restrictions Support Grant (Closed) Addendum: 5 January onwards,"Arts, Entertainment And Recreation",17-Mar-21,LRSG_2811,Schneider Road Community Hub,"2,096.00"
Barrow Borough Council,Local Restrictions Support Grant (Closed) Addendum: 5 January onwards,Wholesale And Retail Trade; Repair Of Motor Vehicles And Motorcycles,17-Mar-21,LRSG_2812,Cumbria Autos ltd,"2,096.00"
Barrow Borough Council,Local Restrictions Support Grant (Closed) Addendum: 5 January onwards,Wholesale And Retail Trade; Repair Of Motor Vehicles And Motorcycles,17-Mar-21,LRSG_2813,James Milner (Barrow) Ltd,"3,143.00"
Barrow Borough Council,Local Restrictions Support Grant (Closed) Addendum: 5 January onwards,"Arts, Entertainment And Recreation",17-Mar-21,LRSG_2814,Barrow & District Disability Association,"2,096.00"
Barrow Borough Council,Local Restrictions Support Grant (Closed) Addendum: 5 January onwards,"Arts, Entertainment And Recreation",17-Mar-21,LRSG_2815,Askam Town Silver Band,"2,096.00"
Barrow Borough Council,Local Restrictions Support Grant (Closed) Addendum: 5 January onwards,Wholesale And Retail Trade; Repair Of Motor Vehicles And Motorcycles,17-Mar-21,LRSG_2816,Empire Flooring Services Ltd ,"3,143.00"
Barrow Borough Council,Local Restrictions Support Grant (Closed) Addendum: 5 January onwards,Accommodation And Food Service Activities,17-Mar-21,LRSG_2817,Pizza Hut (UK) Ltd,"4,714.00"
Barrow Borough Council,Local Restrictions Support Grant (Closed) Addendum: 5 January onwards,"Arts, Entertainment And Recreation",17-Mar-21,LRSG_2818,Barrow Wanderers FC,"2,096.00"
Barrow Borough Council,Local Restrictions Support Grant (Closed) Addendum: 5 January onwards,"Arts, Entertainment And Recreation",17-Mar-21,LRSG_2819,Newton village hall,"2,096.00"
Barrow Borough Council,Local Restrictions Support Grant (Closed) Addendum: 5 January onwards,Wholesale And Retail Trade; Repair Of Motor Vehicles And Motorcycles,17-Mar-21,LRSG_2820,Indentityco Limited,"3,143.00"
Barrow Borough Council,Local Restrictions Support Grant (Closed) Addendum: 5 January onwards,Accommodation And Food Service Activities,17-Mar-21,LRSG_2821,Valley View House Limited,"3,143.00"
Barrow Borough Council,Local Restrictions Support Grant (Closed) Addendum: 5 January onwards,Wholesale And Retail Trade; Repair Of Motor Vehicles And Motorcycles,17-Mar-21,LRSG_2822,Business Grant Recipient,"2,096.00"
Barrow Borough Council,Local Restrictions Support Grant (Closed) Addendum: 5 January onwards,Wholesale And Retail Trade; Repair Of Motor Vehicles And Motorcycles,17-Mar-21,LRSG_2823,Gents hairdressers,"2,096.00"
Barrow Borough Council,Local Restrictions Support Grant (Closed) Addendum: 5 January onwards,Accommodation And Food Service Activities,17-Mar-21,LRSG_2824,Lucidty Group Ltd,"4,714.00"
Barrow Borough Council,Local Restrictions Support Grant (Closed) Addendum: 5 January onwards,Accommodation And Food Service Activities,17-Mar-21,LRSG_2825,Business Grant Recipient,"3,143.00"
Barrow Borough Council,Local Restrictions Support Grant (Closed)�Addendum�,Wholesale And Retail Trade; Repair Of Motor Vehicles And Motorcycles,22-Mar-21,LRSG_2826,CCHG Limited,"1,334.00"
Barrow Borough Council,Local Restrictions Support Grant (Closed)�Addendum�,Wholesale And Retail Trade; Repair Of Motor Vehicles And Motorcycles,22-Mar-21,LRSG_2827,EWB Cotton Ltd,"1,334.00"
Barrow Borough Council,Local Restrictions Support Grant (Closed)�Addendum�,Wholesale And Retail Trade; Repair Of Motor Vehicles And Motorcycles,22-Mar-21,LRSG_2828,Signet Group PLC,"2,000.00"
Barrow Borough Council,Local Restrictions Support Grant (Closed)�Addendum�,Wholesale And Retail Trade; Repair Of Motor Vehicles And Motorcycles,22-Mar-21,LRSG_2829,Peace and Load Bakehouse,"1,334.00"
Barrow Borough Council,Local Restrictions Support Grant (Closed)�Addendum�,Wholesale And Retail Trade; Repair Of Motor Vehicles And Motorcycles,22-Mar-21,LRSG_2830,Once upon a Time,"1,334.00"
Barrow Borough Council,Local Restrictions Support Grant (Closed)�Addendum�,"Arts, Entertainment And Recreation",22-Mar-21,LRSG_2831,Cumbria CVS,"1,334.00"
Barrow Borough Council,Local Restrictions Support Grant (Closed)�Addendum�,"Arts, Entertainment And Recreation",22-Mar-21,LRSG_2832,Furness Catholic Amateur Boxing Club,"1,334.00"
Barrow Borough Council,Local Restrictions Support Grant (Closed)�Addendum�,Wholesale And Retail Trade; Repair Of Motor Vehicles And Motorcycles,22-Mar-21,LRSG_2833,British Red Cross,"2,000.00"
Barrow Borough Council,Local Restrictions Support Grant (Closed) Addendum: Tier 4,Wholesale And Retail Trade; Repair Of Motor Vehicles And Motorcycles,22-Mar-21,LRSG_2834,Business Grant Recipient,238.21
Barrow Borough Council,Local Restrictions Support Grant (Closed) Addendum: 5 January onwards,Wholesale And Retail Trade; Repair Of Motor Vehicles And Motorcycles,22-Mar-21,LRSG_2835,Business Grant Recipient,"2,001.00"
Barrow Borough Council,Local Restrictions Support Grant (Closed) Addendum: Tier 4,Wholesale And Retail Trade; Repair Of Motor Vehicles And Motorcycles,22-Mar-21,LRSG_2836,CSD Property,238.21
Barrow Borough Council,Local Restrictions Support Grant (Closed) Addendum: 5 January onwards,Wholesale And Retail Trade; Repair Of Motor Vehicles And Motorcycles,22-Mar-21,LRSG_2837,CSD Property,"2,001.00"
Barrow Borough Council,Local Restrictions Support Grant (Closed) Addendum: Tier 4,Accommodation And Food Service Activities,22-Mar-21,LRSG_2838,Business Grant Recipient,238.21
Barrow Borough Council,Local Restrictions Support Grant (Closed) Addendum: 5 January onwards,Accommodation And Food Service Activities,22-Mar-21,LRSG_2839,Business Grant Recipient,"2,001.00"
Barrow Borough Council,Local Restrictions Support Grant (Closed) Addendum: Tier 4,Wholesale And Retail Trade; Repair Of Motor Vehicles And Motorcycles,22-Mar-21,LRSG_2840,Just Kidding,238.21
Barrow Borough Council,Local Restrictions Support Grant (Closed) Addendum: 5 January onwards,Wholesale And Retail Trade; Repair Of Motor Vehicles And Motorcycles,22-Mar-21,LRSG_2841,Just Kidding,"2,001.00"
Barrow Borough Council,Local Restrictions Support Grant (Closed) Addendum: Tier 4,Wholesale And Retail Trade; Repair Of Motor Vehicles And Motorcycles,23-Mar-21,LRSG_2842,Peace and Loaf Bakehouse,238.21
Barrow Borough Council,Local Restrictions Support Grant (Closed) Addendum: 5 January onwards,Wholesale And Retail Trade; Repair Of Motor Vehicles And Motorcycles,23-Mar-21,LRSG_2843,Peace and Loaf Bakehouse,"2,001.00"
Barrow Borough Council,Local Restrictions Support Grant (Closed) Addendum: Tier 4,"Arts, Entertainment And Recreation",23-Mar-21,LRSG_2844,Cumbria CVS,238.21
Barrow Borough Council,Local Restrictions Support Grant (Closed) Addendum: 5 January onwards,"Arts, Entertainment And Recreation",23-Mar-21,LRSG_2845,Cumbria CVS,"2,001.00"
Barrow Borough Council,Local Restrictions Support Grant (Closed) Addendum: Tier 4,Wholesale And Retail Trade; Repair Of Motor Vehicles And Motorcycles,23-Mar-21,LRSG_2846,Once upon a Time,238.21
Barrow Borough Council,Local Restrictions Support Grant (Closed) Addendum: 5 January onwards,Wholesale And Retail Trade; Repair Of Motor Vehicles And Motorcycles,23-Mar-21,LRSG_2847, Once upon a Time,"2,001.00"
Barrow Borough Council,Local Restrictions Support Grant (Closed) Addendum: Tier 4,Wholesale And Retail Trade; Repair Of Motor Vehicles And Motorcycles,24-Mar-21,LRSG_2848,EWB Cotton Ltd,238.21
Barrow Borough Council,Local Restrictions Support Grant (Closed) Addendum: 5 January onwards,Wholesale And Retail Trade; Repair Of Motor Vehicles And Motorcycles,24-Mar-21,LRSG_2849,EWB Cotton Ltd,"2,001.00"
Barrow Borough Council,Closed Business Lockdown Payment,Wholesale And Retail Trade; Repair Of Motor Vehicles And Motorcycles,24-Mar-21,LRSG_2850,British Heart Foundation,"4,000.00"
Barrow Borough Council,Closed Business Lockdown Payment,Wholesale And Retail Trade; Repair Of Motor Vehicles And Motorcycles,24-Mar-21,LRSG_2851,British Heart Foundation,"9,000.00"
Barrow Borough Council,Closed Business Lockdown Payment,Wholesale And Retail Trade; Repair Of Motor Vehicles And Motorcycles,24-Mar-21,LRSG_2852,Business Grant Recipient,"4,000.00"
Barrow Borough Council,Closed Business Lockdown Payment,Wholesale And Retail Trade; Repair Of Motor Vehicles And Motorcycles,24-Mar-21,LRSG_2853,CSD Property,"4,000.00"
Barrow Borough Council,Closed Business Lockdown Payment,Accommodation And Food Service Activities,24-Mar-21,LRSG_2854,Business Grant Recipient,"4,000.00"
Barrow Borough Council,Closed Business Lockdown Payment,Wholesale And Retail Trade; Repair Of Motor Vehicles And Motorcycles,24-Mar-21,LRSG_2855, Just Kidding,"4,000.00"
Barrow Borough Council,Closed Business Lockdown Payment,Wholesale And Retail Trade; Repair Of Motor Vehicles And Motorcycles,24-Mar-21,LRSG_2856,Peace and Loaf Bakehouse,"4,000.00"
Barrow Borough Council,Closed Business Lockdown Payment,"Arts, Entertainment And Recreation",24-Mar-21,LRSG_2857,Cumbria CVS,"4,000.00"
Barrow Borough Council,Closed Business Lockdown Payment,Wholesale And Retail Trade; Repair Of Motor Vehicles And Motorcycles,24-Mar-21,LRSG_2858,Once upon a Time,"4,000.00"
Barrow Borough Council,Closed Business Lockdown Payment,Wholesale And Retail Trade; Repair Of Motor Vehicles And Motorcycles,24-Mar-21,LRSG_2859,Sportswift Ltd T/A Card FACTORY,"6,000.00"
Barrow Borough Council,Local Restrictions Support Grant (Closed) Addendum: Tier 4,"Arts, Entertainment And Recreation",25-Mar-21,LRSG_2860,Furness Catholic Amateur Boxing Club,238.21
Barrow Borough Council,Local Restrictions Support Grant (Closed) Addendum: 5 January onwards,"Arts, Entertainment And Recreation",25-Mar-21,LRSG_2861,Furness Catholic Amateur Boxing Club,"2,001.00"
Barrow Borough Council,Local Restrictions Support Grant (Closed)�Addendum�,Wholesale And Retail Trade; Repair Of Motor Vehicles And Motorcycles,29-Mar-21,LRSG_2862,Matalan Retail Ltd,"3,000.00"
Barrow Borough Council,Local Restrictions Support Grant (Closed)�Addendum�,Wholesale And Retail Trade; Repair Of Motor Vehicles And Motorcycles,29-Mar-21,LRSG_2863,DEBRA,"1,334.00"
Barrow Borough Council,Local Restrictions Support Grant (Closed)�Addendum�,Wholesale And Retail Trade; Repair Of Motor Vehicles And Motorcycles,29-Mar-21,LRSG_2864,Esquire Retail Ltd,"3,000.00"
Barrow Borough Council,Local Restrictions Support Grant (Closed)�Addendum�,Accommodation And Food Service Activities,29-Mar-21,LRSG_2865,Red and Racz Ltd,"2,000.00"
Barrow Borough Council,Local Restrictions Support Grant (Closed) Addendum: Tier 4,Wholesale And Retail Trade; Repair Of Motor Vehicles And Motorcycles,29-Mar-21,LRSG_2866,CCHG Limited,238.21
Barrow Borough Council,Local Restrictions Support Grant (Closed) Addendum: 5 January onwards,Wholesale And Retail Trade; Repair Of Motor Vehicles And Motorcycles,29-Mar-21,LRSG_2867,CCHG Limited,"2,001.00"
Barrow Borough Council,Local Restrictions Support Grant (Closed) Addendum: Tier 4,Wholesale And Retail Trade; Repair Of Motor Vehicles And Motorcycles,29-Mar-21,LRSG_2868,JD Motors Barrow Ltd,238.21
Barrow Borough Council,Local Restrictions Support Grant (Closed) Addendum: 5 January onwards,Wholesale And Retail Trade; Repair Of Motor Vehicles And Motorcycles,29-Mar-21,LRSG_2869,JD Motors Barrow Ltd,"2,001.00"
Barrow Borough Council,Local Restrictions Support Grant (Closed) Addendum: 5 January onwards,Wholesale And Retail Trade; Repair Of Motor Vehicles And Motorcycles,29-Mar-21,LRSG_2870,Jacobs & Turner Ltd,"3,000.00"
Barrow Borough Council,Local Restrictions Support Grant (Open)�,Accommodation And Food Service Activities,29-Mar-21,LRSG_2871,Beluto Properties,"1,450.00"
Barrow Borough Council,Local Restrictions Support Grant (Closed) Addendum: Tier 4,Accommodation And Food Service Activities,29-Mar-21,LRSG_2872,Beluto Properties,357.14
Barrow Borough Council,Local Restrictions Support Grant (Closed) Addendum: 5 January onwards,Accommodation And Food Service Activities,29-Mar-21,LRSG_2873,Beluto Properties,"3,000.00"
Barrow Borough Council,Local Restrictions Support Grant (Open)�,Accommodation And Food Service Activities,29-Mar-21,LRSG_2874,Red and Racz Ltd,"1,450.00"
Barrow Borough Council,Local Restrictions Support Grant (Closed) Addendum: Tier 4,Accommodation And Food Service Activities,29-Mar-21,LRSG_2875,Red and Racz Ltd,357.14
Barrow Borough Council,Local Restrictions Support Grant (Closed) Addendum: 5 January onwards,Accommodation And Food Service Activities,29-Mar-21,LRSG_2876,Red and Racz Ltd,"3,000.00"
Barrow Borough Council,Local Restrictions Support Grant (Closed) Addendum: Tier 4,Wholesale And Retail Trade; Repair Of Motor Vehicles And Motorcycles,30-Mar-21,LRSG_2877,Matalan Retail Ltd,535.71
Barrow Borough Council,Local Restrictions Support Grant (Closed) Addendum: 5 January onwards,Wholesale And Retail Trade; Repair Of Motor Vehicles And Motorcycles,30-Mar-21,LRSG_2878,Matalan Retail Ltd,"4,500.00"
Barrow Borough Council,Local Restrictions Support Grant (Closed) Addendum: Tier 4,Wholesale And Retail Trade; Repair Of Motor Vehicles And Motorcycles,30-Mar-21,LRSG_2879,DEBRA,238.21
Barrow Borough Council,Local Restrictions Support Grant (Closed) Addendum: 5 January onwards,Wholesale And Retail Trade; Repair Of Motor Vehicles And Motorcycles,30-Mar-21,LRSG_2880,DEBRA,"2,001.00"
Barrow Borough Council,Local Restrictions Support Grant (Closed) Addendum: Tier 4,Wholesale And Retail Trade; Repair Of Motor Vehicles And Motorcycles,30-Mar-21,LRSG_2881,Esquire Retail Ltd,535.71
Barrow Borough Council,Local Restrictions Support Grant (Closed) Addendum: 5 January onwards,Wholesale And Retail Trade; Repair Of Motor Vehicles And Motorcycles,30-Mar-21,LRSG_2882,Esquire Retail Ltd,"4,500.00"
Barrow Borough Council,Local Restrictions Support Grant (Closed) Addendum: Tier 4,Wholesale And Retail Trade; Repair Of Motor Vehicles And Motorcycles,31-Mar-21,LRSG_2883,Intrim Ladies Hairdressers,238.21
Barrow Borough Council,Local Restrictions Support Grant (Closed) Addendum: 5 January onwards,Wholesale And Retail Trade; Repair Of Motor Vehicles And Motorcycles,31-Mar-21,LRSG_2884,Intrim Ladies Hairdressers,"2,001.00"
Barrow Borough Council,Local Restrictions Support Grant (Open)�,Wholesale And Retail Trade; Repair Of Motor Vehicles And Motorcycles,31-Mar-21,LRSG_2885, Peace and Loaf Bakehouse,967.36
Barrow Borough Council,Closed Business Lockdown Payment,Wholesale And Retail Trade; Repair Of Motor Vehicles And Motorcycles,31-Mar-21,LRSG_2886,Jacobs & Turner Ltd,"6,000.00"
Barrow Borough Council,Closed Business Lockdown Payment,Wholesale And Retail Trade; Repair Of Motor Vehicles And Motorcycles,31-Mar-21,LRSG_2887,EWB Cotton Ltd,"4,000.00"
Barrow Borough Council,Closed Business Lockdown Payment,"Arts, Entertainment And Recreation",31-Mar-21,LRSG_2888,Furness Catholic Amateur Boxing Club,"4,000.00"
Barrow Borough Council,Closed Business Lockdown Payment,Wholesale And Retail Trade; Repair Of Motor Vehicles And Motorcycles,31-Mar-21,LRSG_2889,CCHG Limited,"4,000.00"
Barrow Borough Council,Closed Business Lockdown Payment,Wholesale And Retail Trade; Repair Of Motor Vehicles And Motorcycles,31-Mar-21,LRSG_2890,JD Motors Barrow Ltd,"4,000.00"
Barrow Borough Council,Closed Business Lockdown Payment,Wholesale And Retail Trade; Repair Of Motor Vehicles And Motorcycles,31-Mar-21,LRSG_2891,Matalan Retail Ltd,"9,000.00"
Barrow Borough Council,Closed Business Lockdown Payment,Wholesale And Retail Trade; Repair Of Motor Vehicles And Motorcycles,31-Mar-21,LRSG_2892,DEBRA,"4,000.00"
Barrow Borough Council,Closed Business Lockdown Payment,Wholesale And Retail Trade; Repair Of Motor Vehicles And Motorcycles,31-Mar-21,LRSG_2893,Esquire Retail Ltd,"9,000.00"
Barrow Borough Council,Closed Business Lockdown Payment,Accommodation And Food Service Activities,31-Mar-21,LRSG_2894,Beluto Properties,"6,000.00"
Barrow Borough Council,Closed Business Lockdown Payment,Accommodation And Food Service Activities,31-Mar-21,LRSG_2895,Red and Racz Ltd,"6,000.00"
Barrow Borough Council,Local Restrictions Support Grant (Closed) Addendum: 5 January onwards,"Arts, Entertainment And Recreation",31-Mar-21,LRSG_2896,Majestic Bingo Limited,"4,714.00"
Barrow Borough Council,Local Restrictions Support Grant (Closed) Addendum: 5 January onwards,Wholesale And Retail Trade; Repair Of Motor Vehicles And Motorcycles,31-Mar-21,LRSG_2897,Andersons (Denton Holme)  Limited,"3,143.00"
Barrow Borough Council,Local Restrictions Support Grant (Closed) Addendum: 5 January onwards,Accommodation And Food Service Activities,31-Mar-21,LRSG_2898,Business Grant Recipient,"2,096.00"
Barrow Borough Council,Local Restrictions Support Grant (Closed) Addendum: 5 January onwards,Wholesale And Retail Trade; Repair Of Motor Vehicles And Motorcycles,31-Mar-21,LRSG_2899,Courtesy Shoes Ltd,"3,143.00"
Barrow Borough Council,Local Restrictions Support Grant (Closed) Addendum: 5 January onwards,Wholesale And Retail Trade; Repair Of Motor Vehicles And Motorcycles,31-Mar-21,LRSG_2900,Cancer Research UK,"3,143.00"
Barrow Borough Council,Local Restrictions Support Grant (Closed) Addendum: 5 January onwards,Wholesale And Retail Trade; Repair Of Motor Vehicles And Motorcycles,31-Mar-21,LRSG_2901,Barton Townley (Barrow) Ltd,"4,714.00"
Barrow Borough Council,Local Restrictions Support Grant (Closed) Addendum: 5 January onwards,Wholesale And Retail Trade; Repair Of Motor Vehicles And Motorcycles,31-Mar-21,LRSG_2902, Heaths,"2,096.00"
Barrow Borough Council,Local Restrictions Support Grant (Closed) Addendum: 5 January onwards,Wholesale And Retail Trade; Repair Of Motor Vehicles And Motorcycles,31-Mar-21,LRSG_2903,Sportswift Ltd T/A Card FACTORY,"3,143.00"
Barrow Borough Council,Local Restrictions Support Grant (Closed) Addendum: 5 January onwards,Wholesale And Retail Trade; Repair Of Motor Vehicles And Motorcycles,31-Mar-21,LRSG_2904,British Heart Foundation,"2,096.00"
Barrow Borough Council,Local Restrictions Support Grant (Closed) Addendum: 5 January onwards,Wholesale And Retail Trade; Repair Of Motor Vehicles And Motorcycles,31-Mar-21,LRSG_2905,British Heart Foundation,"4,714.00"
Barrow Borough Council,Local Restrictions Support Grant (Closed) Addendum: 5 January onwards,Wholesale And Retail Trade; Repair Of Motor Vehicles And Motorcycles,31-Mar-21,LRSG_2906,Business Grant Recipient,"2,096.00"
Barrow Borough Council,Local Restrictions Support Grant (Closed) Addendum: 5 January onwards,Wholesale And Retail Trade; Repair Of Motor Vehicles And Motorcycles,31-Mar-21,LRSG_2907,CSD Property,"2,096.00"
Barrow Borough Council,Local Restrictions Support Grant (Closed) Addendum: 5 January onwards,Accommodation And Food Service Activities,31-Mar-21,LRSG_2908,Business Grant Recipient,"2,096.00"
Barrow Borough Council,Local Restrictions Support Grant (Closed) Addendum: 5 January onwards,Wholesale And Retail Trade; Repair Of Motor Vehicles And Motorcycles,31-Mar-21,LRSG_2909,T/A Just Kidding,"2,096.00"
Barrow Borough Council,Local Restrictions Support Grant (Closed) Addendum: 5 January onwards,Wholesale And Retail Trade; Repair Of Motor Vehicles And Motorcycles,31-Mar-21,LRSG_2910,Peace and Loaf Bakehouse,"2,096.00"
Barrow Borough Council,Local Restrictions Support Grant (Closed) Addendum: 5 January onwards,"Arts, Entertainment And Recreation",31-Mar-21,LRSG_2911,Cumbria CVS,"2,096.00"
Barrow Borough Council,Local Restrictions Support Grant (Closed) Addendum: 5 January onwards,Wholesale And Retail Trade; Repair Of Motor Vehicles And Motorcycles,31-Mar-21,LRSG_2912,Once upon a Time,"2,096.00"
